{"text_format":"3","workbook":"xlsx","n_sheets":2,"sheets":["Start","Årlig kalender"],"not_rendered":{"images":4,"defined_names":14},"read":"whole","date_system":"1900"}

{"sheet":"Start","index":0,"n_rows":7,"n_cols":2,"rows_kept":7}
[null,"OM DENNE MALEN"]
[null,"Bruk denne malen til å opprette en personlig kalender for småbedriften for et hvilket som helst år."]
[null,"Fyll ut firmanavn og kontaktinformasjon og legg til firmalogoen."]
[null,"Velg året og skriv inn viktige datoer og anledninger."]
[null,"Obs! "]
[null,"Du finner flere instruksjoner i kolonne A i ÅRSKALENDER-regnearket. Denne teksten er skjult med hensikt. Hvis du vil fjerne teksten, velger du kolonne A og deretter SLETT. "]
[null,"Hvis du vil finne ut mer om tabeller, trykker du på SKIFT og deretter på F10 i en TABELL. Velg alternativet TABELL, og velg deretter ALTERNATIV TEKST."]

{"sheet":"Årlig kalender","index":1,"n_rows":55,"n_cols":21,"rows_kept":55,"merged":[[0,2,0,5],[2,2,2,8],[2,10,2,16],[11,2,11,8],[11,10,11,16],[20,2,20,8],[20,10,20,16],[29,2,29,8],[29,10,29,16],[38,2,38,8],[38,10,38,16],[47,2,47,8],[47,10,47,16],[50,20,54,20]]}
["Opprett en kalender for småbedriften for et hvilket som helst år i dette regnearket. Du finner nyttige instruksjoner for hvordan du bruker regnearket, i cellene i denne kolonnen. Velg spinneren i cellen til høyre for å endre året i celle C1. Du finner viktige datoer-etiketten i celle U1",null,2022,{"$nulls":17},"VIKTIGE DATOER"]
["Du finner tips i cellen til høyre","Bruk spinneren til å endre kalenderåret"]
["Du finner den valgte årskalenderen i celle C3 til Q55, januarkalenderen i celle C4 til I10 og februarkalenderen i celle K4 til Q10. Du finner etiketten for januar i celle C3 og februar i celle K3. Skriv in viktige datoer og anledninger i celle U3 til U42",null,"JANUAR",{"$nulls":7},"FEBRUAR",{"$nulls":9},"1. JANUAR"]
["Du finner tabellen for januarkalenderen i celle C4 til I10 og februarkalenderen i celle K4 til Q10. Du finner neste instruksjon i celle A12",null,"MA.","TI.","ON.","TO.","FR.","LØ.","SØ.",null,"MA.","TI.","ON.","TO.","FR.","LØ.","SØ.",{"$nulls":3},"FØRSTE NYTTÅRSDAG"]
[null,null,{"$f":"IF(DAY(JanSøn1)=1,\"\",IF(AND(YEAR(JanSøn1+1)=Kalenderår,MONTH(JanSøn1+1)=1),JanSøn1+1,\"\"))","v":""},{"$f":"IF(DAY(JanSøn1)=1,\"\",IF(AND(YEAR(JanSøn1+2)=Kalenderår,MONTH(JanSøn1+2)=1),JanSøn1+2,\"\"))","v":""},{"$f":"IF(DAY(JanSøn1)=1,\"\",IF(AND(YEAR(JanSøn1+3)=Kalenderår,MONTH(JanSøn1+3)=1),JanSøn1+3,\"\"))","v":""},{"$f":"IF(DAY(JanSøn1)=1,\"\",IF(AND(YEAR(JanSøn1+4)=Kalenderår,MONTH(JanSøn1+4)=1),JanSøn1+4,\"\"))","v":""},{"$f":"IF(DAY(JanSøn1)=1,\"\",IF(AND(YEAR(JanSøn1+5)=Kalenderår,MONTH(JanSøn1+5)=1),JanSøn1+5,\"\"))","v":""},{"$f":"IF(DAY(JanSøn1)=1,\"\",IF(AND(YEAR(JanSøn1+6)=Kalenderår,MONTH(JanSøn1+6)=1),JanSøn1+6,\"\"))","v":"2022-01-01"},{"$f":"IF(DAY(JanSøn1)=1,IF(AND(YEAR(JanSøn1)=Kalenderår,MONTH(JanSøn1)=1),JanSøn1,\"\"),IF(AND(YEAR(JanSøn1+7)=Kalenderår,MONTH(JanSøn1+7)=1),JanSøn1+7,\"\"))","v":"2022-01-02"},null,{"$f":"IF(DAY(FebSøn1)=1,\"\",IF(AND(YEAR(FebSøn1+1)=Kalenderår,MONTH(FebSøn1+1)=2),FebSøn1+1,\"\"))","v":""},{"$f":"IF(DAY(FebSøn1)=1,\"\",IF(AND(YEAR(FebSøn1+2)=Kalenderår,MONTH(FebSøn1+2)=2),FebSøn1+2,\"\"))","v":"2022-02-01"},{"$f":"IF(DAY(FebSøn1)=1,\"\",IF(AND(YEAR(FebSøn1+3)=Kalenderår,MONTH(FebSøn1+3)=2),FebSøn1+3,\"\"))","v":"2022-02-02"},{"$f":"IF(DAY(FebSøn1)=1,\"\",IF(AND(YEAR(FebSøn1+4)=Kalenderår,MONTH(FebSøn1+4)=2),FebSøn1+4,\"\"))","v":"2022-02-03"},{"$f":"IF(DAY(FebSøn1)=1,\"\",IF(AND(YEAR(FebSøn1+5)=Kalenderår,MONTH(FebSøn1+5)=2),FebSøn1+5,\"\"))","v":"2022-02-04"},{"$f":"IF(DAY(FebSøn1)=1,\"\",IF(AND(YEAR(FebSøn1+6)=Kalenderår,MONTH(FebSøn1+6)=2),FebSøn1+6,\"\"))","v":"2022-02-05"},{"$f":"IF(DAY(FebSøn1)=1,IF(AND(YEAR(FebSøn1)=Kalenderår,MONTH(FebSøn1)=2),FebSøn1,\"\"),IF(AND(YEAR(FebSøn1+7)=Kalenderår,MONTH(FebSøn1+7)=2),FebSøn1+7,\"\"))","v":"2022-02-06"}]
[null,null,{"$f":"IF(DAY(JanSøn1)=1,IF(AND(YEAR(JanSøn1+1)=Kalenderår,MONTH(JanSøn1+1)=1),JanSøn1+1,\"\"),IF(AND(YEAR(JanSøn1+8)=Kalenderår,MONTH(JanSøn1+8)=1),JanSøn1+8,\"\"))","v":"2022-01-03"},{"$f":"IF(DAY(JanSøn1)=1,IF(AND(YEAR(JanSøn1+2)=Kalenderår,MONTH(JanSøn1+2)=1),JanSøn1+2,\"\"),IF(AND(YEAR(JanSøn1+9)=Kalenderår,MONTH(JanSøn1+9)=1),JanSøn1+9,\"\"))","v":"2022-01-04"},{"$f":"IF(DAY(JanSøn1)=1,IF(AND(YEAR(JanSøn1+3)=Kalenderår,MONTH(JanSøn1+3)=1),JanSøn1+3,\"\"),IF(AND(YEAR(JanSøn1+10)=Kalenderår,MONTH(JanSøn1+10)=1),JanSøn1+10,\"\"))","v":"2022-01-05"},{"$f":"IF(DAY(JanSøn1)=1,IF(AND(YEAR(JanSøn1+4)=Kalenderår,MONTH(JanSøn1+4)=1),JanSøn1+4,\"\"),IF(AND(YEAR(JanSøn1+11)=Kalenderår,MONTH(JanSøn1+11)=1),JanSøn1+11,\"\"))","v":"2022-01-06"},{"$f":"IF(DAY(JanSøn1)=1,IF(AND(YEAR(JanSøn1+5)=Kalenderår,MONTH(JanSøn1+5)=1),JanSøn1+5,\"\"),IF(AND(YEAR(JanSøn1+12)=Kalenderår,MONTH(JanSøn1+12)=1),JanSøn1+12,\"\"))","v":"2022-01-07"},{"$f":"IF(DAY(JanSøn1)=1,IF(AND(YEAR(JanSøn1+6)=Kalenderår,MONTH(JanSøn1+6)=1),JanSøn1+6,\"\"),IF(AND(YEAR(JanSøn1+13)=Kalenderår,MONTH(JanSøn1+13)=1),JanSøn1+13,\"\"))","v":"2022-01-08"},{"$f":"IF(DAY(JanSøn1)=1,IF(AND(YEAR(JanSøn1+7)=Kalenderår,MONTH(JanSøn1+7)=1),JanSøn1+7,\"\"),IF(AND(YEAR(JanSøn1+14)=Kalenderår,MONTH(JanSøn1+14)=1),JanSøn1+14,\"\"))","v":"2022-01-09"},null,{"$f":"IF(DAY(FebSøn1)=1,IF(AND(YEAR(FebSøn1+1)=Kalenderår,MONTH(FebSøn1+1)=2),FebSøn1+1,\"\"),IF(AND(YEAR(FebSøn1+8)=Kalenderår,MONTH(FebSøn1+8)=2),FebSøn1+8,\"\"))","v":"2022-02-07"},{"$f":"IF(DAY(FebSøn1)=1,IF(AND(YEAR(FebSøn1+2)=Kalenderår,MONTH(FebSøn1+2)=2),FebSøn1+2,\"\"),IF(AND(YEAR(FebSøn1+9)=Kalenderår,MONTH(FebSøn1+9)=2),FebSøn1+9,\"\"))","v":"2022-02-08"},{"$f":"IF(DAY(FebSøn1)=1,IF(AND(YEAR(FebSøn1+3)=Kalenderår,MONTH(FebSøn1+3)=2),FebSøn1+3,\"\"),IF(AND(YEAR(FebSøn1+10)=Kalenderår,MONTH(FebSøn1+10)=2),FebSøn1+10,\"\"))","v":"2022-02-09"},{"$f":"IF(DAY(FebSøn1)=1,IF(AND(YEAR(FebSøn1+4)=Kalenderår,MONTH(FebSøn1+4)=2),FebSøn1+4,\"\"),IF(AND(YEAR(FebSøn1+11)=Kalenderår,MONTH(FebSøn1+11)=2),FebSøn1+11,\"\"))","v":"2022-02-10"},{"$f":"IF(DAY(FebSøn1)=1,IF(AND(YEAR(FebSøn1+5)=Kalenderår,MONTH(FebSøn1+5)=2),FebSøn1+5,\"\"),IF(AND(YEAR(FebSøn1+12)=Kalenderår,MONTH(FebSøn1+12)=2),FebSøn1+12,\"\"))","v":"2022-02-11"},{"$f":"IF(DAY(FebSøn1)=1,IF(AND(YEAR(FebSøn1+6)=Kalenderår,MONTH(FebSøn1+6)=2),FebSøn1+6,\"\"),IF(AND(YEAR(FebSøn1+13)=Kalenderår,MONTH(FebSøn1+13)=2),FebSøn1+13,\"\"))","v":"2022-02-12"},{"$f":"IF(DAY(FebSøn1)=1,IF(AND(YEAR(FebSøn1+7)=Kalenderår,MONTH(FebSøn1+7)=2),FebSøn1+7,\"\"),IF(AND(YEAR(FebSøn1+14)=Kalenderår,MONTH(FebSøn1+14)=2),FebSøn1+14,\"\"))","v":"2022-02-13"},{"$nulls":3},"14. FEBRUAR"]
[null,null,{"$f":"IF(DAY(JanSøn1)=1,IF(AND(YEAR(JanSøn1+8)=Kalenderår,MONTH(JanSøn1+8)=1),JanSøn1+8,\"\"),IF(AND(YEAR(JanSøn1+15)=Kalenderår,MONTH(JanSøn1+15)=1),JanSøn1+15,\"\"))","v":"2022-01-10"},{"$f":"IF(DAY(JanSøn1)=1,IF(AND(YEAR(JanSøn1+9)=Kalenderår,MONTH(JanSøn1+9)=1),JanSøn1+9,\"\"),IF(AND(YEAR(JanSøn1+16)=Kalenderår,MONTH(JanSøn1+16)=1),JanSøn1+16,\"\"))","v":"2022-01-11"},{"$f":"IF(DAY(JanSøn1)=1,IF(AND(YEAR(JanSøn1+10)=Kalenderår,MONTH(JanSøn1+10)=1),JanSøn1+10,\"\"),IF(AND(YEAR(JanSøn1+17)=Kalenderår,MONTH(JanSøn1+17)=1),JanSøn1+17,\"\"))","v":"2022-01-12"},{"$f":"IF(DAY(JanSøn1)=1,IF(AND(YEAR(JanSøn1+11)=Kalenderår,MONTH(JanSøn1+11)=1),JanSøn1+11,\"\"),IF(AND(YEAR(JanSøn1+18)=Kalenderår,MONTH(JanSøn1+18)=1),JanSøn1+18,\"\"))","v":"2022-01-13"},{"$f":"IF(DAY(JanSøn1)=1,IF(AND(YEAR(JanSøn1+12)=Kalenderår,MONTH(JanSøn1+12)=1),JanSøn1+12,\"\"),IF(AND(YEAR(JanSøn1+19)=Kalenderår,MONTH(JanSøn1+19)=1),JanSøn1+19,\"\"))","v":"2022-01-14"},{"$f":"IF(DAY(JanSøn1)=1,IF(AND(YEAR(JanSøn1+13)=Kalenderår,MONTH(JanSøn1+13)=1),JanSøn1+13,\"\"),IF(AND(YEAR(JanSøn1+20)=Kalenderår,MONTH(JanSøn1+20)=1),JanSøn1+20,\"\"))","v":"2022-01-15"},{"$f":"IF(DAY(JanSøn1)=1,IF(AND(YEAR(JanSøn1+14)=Kalenderår,MONTH(JanSøn1+14)=1),JanSøn1+14,\"\"),IF(AND(YEAR(JanSøn1+21)=Kalenderår,MONTH(JanSøn1+21)=1),JanSøn1+21,\"\"))","v":"2022-01-16"},null,{"$f":"IF(DAY(FebSøn1)=1,IF(AND(YEAR(FebSøn1+8)=Kalenderår,MONTH(FebSøn1+8)=2),FebSøn1+8,\"\"),IF(AND(YEAR(FebSøn1+15)=Kalenderår,MONTH(FebSøn1+15)=2),FebSøn1+15,\"\"))","v":"2022-02-14"},{"$f":"IF(DAY(FebSøn1)=1,IF(AND(YEAR(FebSøn1+9)=Kalenderår,MONTH(FebSøn1+9)=2),FebSøn1+9,\"\"),IF(AND(YEAR(FebSøn1+16)=Kalenderår,MONTH(FebSøn1+16)=2),FebSøn1+16,\"\"))","v":"2022-02-15"},{"$f":"IF(DAY(FebSøn1)=1,IF(AND(YEAR(FebSøn1+10)=Kalenderår,MONTH(FebSøn1+10)=2),FebSøn1+10,\"\"),IF(AND(YEAR(FebSøn1+17)=Kalenderår,MONTH(FebSøn1+17)=2),FebSøn1+17,\"\"))","v":"2022-02-16"},{"$f":"IF(DAY(FebSøn1)=1,IF(AND(YEAR(FebSøn1+11)=Kalenderår,MONTH(FebSøn1+11)=2),FebSøn1+11,\"\"),IF(AND(YEAR(FebSøn1+18)=Kalenderår,MONTH(FebSøn1+18)=2),FebSøn1+18,\"\"))","v":"2022-02-17"},{"$f":"IF(DAY(FebSøn1)=1,IF(AND(YEAR(FebSøn1+12)=Kalenderår,MONTH(FebSøn1+12)=2),FebSøn1+12,\"\"),IF(AND(YEAR(FebSøn1+19)=Kalenderår,MONTH(FebSøn1+19)=2),FebSøn1+19,\"\"))","v":"2022-02-18"},{"$f":"IF(DAY(FebSøn1)=1,IF(AND(YEAR(FebSøn1+13)=Kalenderår,MONTH(FebSøn1+13)=2),FebSøn1+13,\"\"),IF(AND(YEAR(FebSøn1+20)=Kalenderår,MONTH(FebSøn1+20)=2),FebSøn1+20,\"\"))","v":"2022-02-19"},{"$f":"IF(DAY(FebSøn1)=1,IF(AND(YEAR(FebSøn1+14)=Kalenderår,MONTH(FebSøn1+14)=2),FebSøn1+14,\"\"),IF(AND(YEAR(FebSøn1+21)=Kalenderår,MONTH(FebSøn1+21)=2),FebSøn1+21,\"\"))","v":"2022-02-20"},{"$nulls":3},"VALENTINSDAG"]
[null,null,{"$f":"IF(DAY(JanSøn1)=1,IF(AND(YEAR(JanSøn1+15)=Kalenderår,MONTH(JanSøn1+15)=1),JanSøn1+15,\"\"),IF(AND(YEAR(JanSøn1+22)=Kalenderår,MONTH(JanSøn1+22)=1),JanSøn1+22,\"\"))","v":"2022-01-17"},{"$f":"IF(DAY(JanSøn1)=1,IF(AND(YEAR(JanSøn1+16)=Kalenderår,MONTH(JanSøn1+16)=1),JanSøn1+16,\"\"),IF(AND(YEAR(JanSøn1+23)=Kalenderår,MONTH(JanSøn1+23)=1),JanSøn1+23,\"\"))","v":"2022-01-18"},{"$f":"IF(DAY(JanSøn1)=1,IF(AND(YEAR(JanSøn1+17)=Kalenderår,MONTH(JanSøn1+17)=1),JanSøn1+17,\"\"),IF(AND(YEAR(JanSøn1+24)=Kalenderår,MONTH(JanSøn1+24)=1),JanSøn1+24,\"\"))","v":"2022-01-19"},{"$f":"IF(DAY(JanSøn1)=1,IF(AND(YEAR(JanSøn1+18)=Kalenderår,MONTH(JanSøn1+18)=1),JanSøn1+18,\"\"),IF(AND(YEAR(JanSøn1+25)=Kalenderår,MONTH(JanSøn1+25)=1),JanSøn1+25,\"\"))","v":"2022-01-20"},{"$f":"IF(DAY(JanSøn1)=1,IF(AND(YEAR(JanSøn1+19)=Kalenderår,MONTH(JanSøn1+19)=1),JanSøn1+19,\"\"),IF(AND(YEAR(JanSøn1+26)=Kalenderår,MONTH(JanSøn1+26)=1),JanSøn1+26,\"\"))","v":"2022-01-21"},{"$f":"IF(DAY(JanSøn1)=1,IF(AND(YEAR(JanSøn1+20)=Kalenderår,MONTH(JanSøn1+20)=1),JanSøn1+20,\"\"),IF(AND(YEAR(JanSøn1+27)=Kalenderår,MONTH(JanSøn1+27)=1),JanSøn1+27,\"\"))","v":"2022-01-22"},{"$f":"IF(DAY(JanSøn1)=1,IF(AND(YEAR(JanSøn1+21)=Kalenderår,MONTH(JanSøn1+21)=1),JanSøn1+21,\"\"),IF(AND(YEAR(JanSøn1+28)=Kalenderår,MONTH(JanSøn1+28)=1),JanSøn1+28,\"\"))","v":"2022-01-23"},null,{"$f":"IF(DAY(FebSøn1)=1,IF(AND(YEAR(FebSøn1+15)=Kalenderår,MONTH(FebSøn1+15)=2),FebSøn1+15,\"\"),IF(AND(YEAR(FebSøn1+22)=Kalenderår,MONTH(FebSøn1+22)=2),FebSøn1+22,\"\"))","v":"2022-02-21"},{"$f":"IF(DAY(FebSøn1)=1,IF(AND(YEAR(FebSøn1+16)=Kalenderår,MONTH(FebSøn1+16)=2),FebSøn1+16,\"\"),IF(AND(YEAR(FebSøn1+23)=Kalenderår,MONTH(FebSøn1+23)=2),FebSøn1+23,\"\"))","v":"2022-02-22"},{"$f":"IF(DAY(FebSøn1)=1,IF(AND(YEAR(FebSøn1+17)=Kalenderår,MONTH(FebSøn1+17)=2),FebSøn1+17,\"\"),IF(AND(YEAR(FebSøn1+24)=Kalenderår,MONTH(FebSøn1+24)=2),FebSøn1+24,\"\"))","v":"2022-02-23"},{"$f":"IF(DAY(FebSøn1)=1,IF(AND(YEAR(FebSøn1+18)=Kalenderår,MONTH(FebSøn1+18)=2),FebSøn1+18,\"\"),IF(AND(YEAR(FebSøn1+25)=Kalenderår,MONTH(FebSøn1+25)=2),FebSøn1+25,\"\"))","v":"2022-02-24"},{"$f":"IF(DAY(FebSøn1)=1,IF(AND(YEAR(FebSøn1+19)=Kalenderår,MONTH(FebSøn1+19)=2),FebSøn1+19,\"\"),IF(AND(YEAR(FebSøn1+26)=Kalenderår,MONTH(FebSøn1+26)=2),FebSøn1+26,\"\"))","v":"2022-02-25"},{"$f":"IF(DAY(FebSøn1)=1,IF(AND(YEAR(FebSøn1+20)=Kalenderår,MONTH(FebSøn1+20)=2),FebSøn1+20,\"\"),IF(AND(YEAR(FebSøn1+27)=Kalenderår,MONTH(FebSøn1+27)=2),FebSøn1+27,\"\"))","v":"2022-02-26"},{"$f":"IF(DAY(FebSøn1)=1,IF(AND(YEAR(FebSøn1+21)=Kalenderår,MONTH(FebSøn1+21)=2),FebSøn1+21,\"\"),IF(AND(YEAR(FebSøn1+28)=Kalenderår,MONTH(FebSøn1+28)=2),FebSøn1+28,\"\"))","v":"2022-02-27"}]
[null,null,{"$f":"IF(DAY(JanSøn1)=1,IF(AND(YEAR(JanSøn1+22)=Kalenderår,MONTH(JanSøn1+22)=1),JanSøn1+22,\"\"),IF(AND(YEAR(JanSøn1+29)=Kalenderår,MONTH(JanSøn1+29)=1),JanSøn1+29,\"\"))","v":"2022-01-24"},{"$f":"IF(DAY(JanSøn1)=1,IF(AND(YEAR(JanSøn1+23)=Kalenderår,MONTH(JanSøn1+23)=1),JanSøn1+23,\"\"),IF(AND(YEAR(JanSøn1+30)=Kalenderår,MONTH(JanSøn1+30)=1),JanSøn1+30,\"\"))","v":"2022-01-25"},{"$f":"IF(DAY(JanSøn1)=1,IF(AND(YEAR(JanSøn1+24)=Kalenderår,MONTH(JanSøn1+24)=1),JanSøn1+24,\"\"),IF(AND(YEAR(JanSøn1+31)=Kalenderår,MONTH(JanSøn1+31)=1),JanSøn1+31,\"\"))","v":"2022-01-26"},{"$f":"IF(DAY(JanSøn1)=1,IF(AND(YEAR(JanSøn1+25)=Kalenderår,MONTH(JanSøn1+25)=1),JanSøn1+25,\"\"),IF(AND(YEAR(JanSøn1+32)=Kalenderår,MONTH(JanSøn1+32)=1),JanSøn1+32,\"\"))","v":"2022-01-27"},{"$f":"IF(DAY(JanSøn1)=1,IF(AND(YEAR(JanSøn1+26)=Kalenderår,MONTH(JanSøn1+26)=1),JanSøn1+26,\"\"),IF(AND(YEAR(JanSøn1+33)=Kalenderår,MONTH(JanSøn1+33)=1),JanSøn1+33,\"\"))","v":"2022-01-28"},{"$f":"IF(DAY(JanSøn1)=1,IF(AND(YEAR(JanSøn1+27)=Kalenderår,MONTH(JanSøn1+27)=1),JanSøn1+27,\"\"),IF(AND(YEAR(JanSøn1+34)=Kalenderår,MONTH(JanSøn1+34)=1),JanSøn1+34,\"\"))","v":"2022-01-29"},{"$f":"IF(DAY(JanSøn1)=1,IF(AND(YEAR(JanSøn1+28)=Kalenderår,MONTH(JanSøn1+28)=1),JanSøn1+28,\"\"),IF(AND(YEAR(JanSøn1+35)=Kalenderår,MONTH(JanSøn1+35)=1),JanSøn1+35,\"\"))","v":"2022-01-30"},null,{"$f":"IF(DAY(FebSøn1)=1,IF(AND(YEAR(FebSøn1+22)=Kalenderår,MONTH(FebSøn1+22)=2),FebSøn1+22,\"\"),IF(AND(YEAR(FebSøn1+29)=Kalenderår,MONTH(FebSøn1+29)=2),FebSøn1+29,\"\"))","v":"2022-02-28"},{"$f":"IF(DAY(FebSøn1)=1,IF(AND(YEAR(FebSøn1+23)=Kalenderår,MONTH(FebSøn1+23)=2),FebSøn1+23,\"\"),IF(AND(YEAR(FebSøn1+30)=Kalenderår,MONTH(FebSøn1+30)=2),FebSøn1+30,\"\"))","v":""},{"$f":"IF(DAY(FebSøn1)=1,IF(AND(YEAR(FebSøn1+24)=Kalenderår,MONTH(FebSøn1+24)=2),FebSøn1+24,\"\"),IF(AND(YEAR(FebSøn1+31)=Kalenderår,MONTH(FebSøn1+31)=2),FebSøn1+31,\"\"))","v":""},{"$f":"IF(DAY(FebSøn1)=1,IF(AND(YEAR(FebSøn1+25)=Kalenderår,MONTH(FebSøn1+25)=2),FebSøn1+25,\"\"),IF(AND(YEAR(FebSøn1+32)=Kalenderår,MONTH(FebSøn1+32)=2),FebSøn1+32,\"\"))","v":""},{"$f":"IF(DAY(FebSøn1)=1,IF(AND(YEAR(FebSøn1+26)=Kalenderår,MONTH(FebSøn1+26)=2),FebSøn1+26,\"\"),IF(AND(YEAR(FebSøn1+33)=Kalenderår,MONTH(FebSøn1+33)=2),FebSøn1+33,\"\"))","v":""},{"$f":"IF(DAY(FebSøn1)=1,IF(AND(YEAR(FebSøn1+27)=Kalenderår,MONTH(FebSøn1+27)=2),FebSøn1+27,\"\"),IF(AND(YEAR(FebSøn1+34)=Kalenderår,MONTH(FebSøn1+34)=2),FebSøn1+34,\"\"))","v":""},{"$f":"IF(DAY(FebSøn1)=1,IF(AND(YEAR(FebSøn1+28)=Kalenderår,MONTH(FebSøn1+28)=2),FebSøn1+28,\"\"),IF(AND(YEAR(FebSøn1+35)=Kalenderår,MONTH(FebSøn1+35)=2),FebSøn1+35,\"\"))","v":""},{"$nulls":3},"22. FEBRUAR"]
[null,null,{"$f":"IF(DAY(JanSøn1)=1,IF(AND(YEAR(JanSøn1+29)=Kalenderår,MONTH(JanSøn1+29)=1),JanSøn1+29,\"\"),IF(AND(YEAR(JanSøn1+36)=Kalenderår,MONTH(JanSøn1+36)=1),JanSøn1+36,\"\"))","v":"2022-01-31"},{"$f":"IF(DAY(JanSøn1)=1,IF(AND(YEAR(JanSøn1+30)=Kalenderår,MONTH(JanSøn1+30)=1),JanSøn1+30,\"\"),IF(AND(YEAR(JanSøn1+37)=Kalenderår,MONTH(JanSøn1+37)=1),JanSøn1+37,\"\"))","v":""},{"$f":"IF(DAY(JanSøn1)=1,IF(AND(YEAR(JanSøn1+31)=Kalenderår,MONTH(JanSøn1+31)=1),JanSøn1+31,\"\"),IF(AND(YEAR(JanSøn1+38)=Kalenderår,MONTH(JanSøn1+38)=1),JanSøn1+38,\"\"))","v":""},{"$f":"IF(DAY(JanSøn1)=1,IF(AND(YEAR(JanSøn1+32)=Kalenderår,MONTH(JanSøn1+32)=1),JanSøn1+32,\"\"),IF(AND(YEAR(JanSøn1+39)=Kalenderår,MONTH(JanSøn1+39)=1),JanSøn1+39,\"\"))","v":""},{"$f":"IF(DAY(JanSøn1)=1,IF(AND(YEAR(JanSøn1+33)=Kalenderår,MONTH(JanSøn1+33)=1),JanSøn1+33,\"\"),IF(AND(YEAR(JanSøn1+40)=Kalenderår,MONTH(JanSøn1+40)=1),JanSøn1+40,\"\"))","v":""},{"$f":"IF(DAY(JanSøn1)=1,IF(AND(YEAR(JanSøn1+34)=Kalenderår,MONTH(JanSøn1+34)=1),JanSøn1+34,\"\"),IF(AND(YEAR(JanSøn1+41)=Kalenderår,MONTH(JanSøn1+41)=1),JanSøn1+41,\"\"))","v":""},{"$f":"IF(DAY(JanSøn1)=1,IF(AND(YEAR(JanSøn1+35)=Kalenderår,MONTH(JanSøn1+35)=1),JanSøn1+35,\"\"),IF(AND(YEAR(JanSøn1+42)=Kalenderår,MONTH(JanSøn1+42)=1),JanSøn1+42,\"\"))","v":""},null,{"$f":"IF(DAY(FebSøn1)=1,IF(AND(YEAR(FebSøn1+29)=Kalenderår,MONTH(FebSøn1+29)=2),FebSøn1+29,\"\"),IF(AND(YEAR(FebSøn1+36)=Kalenderår,MONTH(FebSøn1+36)=2),FebSøn1+36,\"\"))","v":""},{"$f":"IF(DAY(FebSøn1)=1,IF(AND(YEAR(FebSøn1+30)=Kalenderår,MONTH(FebSøn1+30)=2),FebSøn1+30,\"\"),IF(AND(YEAR(FebSøn1+37)=Kalenderår,MONTH(FebSøn1+37)=2),FebSøn1+37,\"\"))","v":""},{"$f":"IF(DAY(FebSøn1)=1,IF(AND(YEAR(FebSøn1+31)=Kalenderår,MONTH(FebSøn1+31)=2),FebSøn1+31,\"\"),IF(AND(YEAR(FebSøn1+38)=Kalenderår,MONTH(FebSøn1+38)=2),FebSøn1+38,\"\"))","v":""},{"$f":"IF(DAY(FebSøn1)=1,IF(AND(YEAR(FebSøn1+32)=Kalenderår,MONTH(FebSøn1+32)=2),FebSøn1+32,\"\"),IF(AND(YEAR(FebSøn1+39)=Kalenderår,MONTH(FebSøn1+39)=2),FebSøn1+39,\"\"))","v":""},{"$f":"IF(DAY(FebSøn1)=1,IF(AND(YEAR(FebSøn1+33)=Kalenderår,MONTH(FebSøn1+33)=2),FebSøn1+33,\"\"),IF(AND(YEAR(FebSøn1+40)=Kalenderår,MONTH(FebSøn1+40)=2),FebSøn1+40,\"\"))","v":""},{"$f":"IF(DAY(FebSøn1)=1,IF(AND(YEAR(FebSøn1+34)=Kalenderår,MONTH(FebSøn1+34)=2),FebSøn1+34,\"\"),IF(AND(YEAR(FebSøn1+41)=Kalenderår,MONTH(FebSøn1+41)=2),FebSøn1+41,\"\"))","v":""},{"$f":"IF(DAY(FebSøn1)=1,IF(AND(YEAR(FebSøn1+35)=Kalenderår,MONTH(FebSøn1+35)=2),FebSøn1+35,\"\"),IF(AND(YEAR(FebSøn1+42)=Kalenderår,MONTH(FebSøn1+42)=2),FebSøn1+42,\"\"))","v":""},{"$nulls":3},"ÅPENT HUS"]
[]
["Du finner etiketten for mars i celle C12 og april i celle K12",null,"MARS",{"$nulls":7},"APRIL"]
["Du finner tabellen for marskalenderen i celle C13 til I19 og aprilkalenderen i celle K13 til Q19. Du finner neste instruksjon i celle A21",null,"MA.","TI.","ON.","TO.","FR.","LØ.","SØ.",null,"MA.","TI.","ON.","TO.","FR.","LØ.","SØ."]
[null,null,{"$f":"IF(DAY(MarSøn1)=1,\"\",IF(AND(YEAR(MarSøn1+1)=Kalenderår,MONTH(MarSøn1+1)=3),MarSøn1+1,\"\"))","v":""},{"$f":"IF(DAY(MarSøn1)=1,\"\",IF(AND(YEAR(MarSøn1+2)=Kalenderår,MONTH(MarSøn1+2)=3),MarSøn1+2,\"\"))","v":"2022-03-01"},{"$f":"IF(DAY(MarSøn1)=1,\"\",IF(AND(YEAR(MarSøn1+3)=Kalenderår,MONTH(MarSøn1+3)=3),MarSøn1+3,\"\"))","v":"2022-03-02"},{"$f":"IF(DAY(MarSøn1)=1,\"\",IF(AND(YEAR(MarSøn1+4)=Kalenderår,MONTH(MarSøn1+4)=3),MarSøn1+4,\"\"))","v":"2022-03-03"},{"$f":"IF(DAY(MarSøn1)=1,\"\",IF(AND(YEAR(MarSøn1+5)=Kalenderår,MONTH(MarSøn1+5)=3),MarSøn1+5,\"\"))","v":"2022-03-04"},{"$f":"IF(DAY(MarSøn1)=1,\"\",IF(AND(YEAR(MarSøn1+6)=Kalenderår,MONTH(MarSøn1+6)=3),MarSøn1+6,\"\"))","v":"2022-03-05"},{"$f":"IF(DAY(MarSøn1)=1,IF(AND(YEAR(MarSøn1)=Kalenderår,MONTH(MarSøn1)=3),MarSøn1,\"\"),IF(AND(YEAR(MarSøn1+7)=Kalenderår,MONTH(MarSøn1+7)=3),MarSøn1+7,\"\"))","v":"2022-03-06"},null,{"$f":"IF(DAY(AprSøn1)=1,\"\",IF(AND(YEAR(AprSøn1+1)=Kalenderår,MONTH(AprSøn1+1)=4),AprSøn1+1,\"\"))","v":""},{"$f":"IF(DAY(AprSøn1)=1,\"\",IF(AND(YEAR(AprSøn1+2)=Kalenderår,MONTH(AprSøn1+2)=4),AprSøn1+2,\"\"))","v":""},{"$f":"IF(DAY(AprSøn1)=1,\"\",IF(AND(YEAR(AprSøn1+3)=Kalenderår,MONTH(AprSøn1+3)=4),AprSøn1+3,\"\"))","v":""},{"$f":"IF(DAY(AprSøn1)=1,\"\",IF(AND(YEAR(AprSøn1+4)=Kalenderår,MONTH(AprSøn1+4)=4),AprSøn1+4,\"\"))","v":""},{"$f":"IF(DAY(AprSøn1)=1,\"\",IF(AND(YEAR(AprSøn1+5)=Kalenderår,MONTH(AprSøn1+5)=4),AprSøn1+5,\"\"))","v":"2022-04-01"},{"$f":"IF(DAY(AprSøn1)=1,\"\",IF(AND(YEAR(AprSøn1+6)=Kalenderår,MONTH(AprSøn1+6)=4),AprSøn1+6,\"\"))","v":"2022-04-02"},{"$f":"IF(DAY(AprSøn1)=1,IF(AND(YEAR(AprSøn1)=Kalenderår,MONTH(AprSøn1)=4),AprSøn1,\"\"),IF(AND(YEAR(AprSøn1+7)=Kalenderår,MONTH(AprSøn1+7)=4),AprSøn1+7,\"\"))","v":"2022-04-03"}]
[null,null,{"$f":"IF(DAY(MarSøn1)=1,IF(AND(YEAR(MarSøn1+1)=Kalenderår,MONTH(MarSøn1+1)=3),MarSøn1+1,\"\"),IF(AND(YEAR(MarSøn1+8)=Kalenderår,MONTH(MarSøn1+8)=3),MarSøn1+8,\"\"))","v":"2022-03-07"},{"$f":"IF(DAY(MarSøn1)=1,IF(AND(YEAR(MarSøn1+2)=Kalenderår,MONTH(MarSøn1+2)=3),MarSøn1+2,\"\"),IF(AND(YEAR(MarSøn1+9)=Kalenderår,MONTH(MarSøn1+9)=3),MarSøn1+9,\"\"))","v":"2022-03-08"},{"$f":"IF(DAY(MarSøn1)=1,IF(AND(YEAR(MarSøn1+3)=Kalenderår,MONTH(MarSøn1+3)=3),MarSøn1+3,\"\"),IF(AND(YEAR(MarSøn1+10)=Kalenderår,MONTH(MarSøn1+10)=3),MarSøn1+10,\"\"))","v":"2022-03-09"},{"$f":"IF(DAY(MarSøn1)=1,IF(AND(YEAR(MarSøn1+4)=Kalenderår,MONTH(MarSøn1+4)=3),MarSøn1+4,\"\"),IF(AND(YEAR(MarSøn1+11)=Kalenderår,MONTH(MarSøn1+11)=3),MarSøn1+11,\"\"))","v":"2022-03-10"},{"$f":"IF(DAY(MarSøn1)=1,IF(AND(YEAR(MarSøn1+5)=Kalenderår,MONTH(MarSøn1+5)=3),MarSøn1+5,\"\"),IF(AND(YEAR(MarSøn1+12)=Kalenderår,MONTH(MarSøn1+12)=3),MarSøn1+12,\"\"))","v":"2022-03-11"},{"$f":"IF(DAY(MarSøn1)=1,IF(AND(YEAR(MarSøn1+6)=Kalenderår,MONTH(MarSøn1+6)=3),MarSøn1+6,\"\"),IF(AND(YEAR(MarSøn1+13)=Kalenderår,MONTH(MarSøn1+13)=3),MarSøn1+13,\"\"))","v":"2022-03-12"},{"$f":"IF(DAY(MarSøn1)=1,IF(AND(YEAR(MarSøn1+7)=Kalenderår,MONTH(MarSøn1+7)=3),MarSøn1+7,\"\"),IF(AND(YEAR(MarSøn1+14)=Kalenderår,MONTH(MarSøn1+14)=3),MarSøn1+14,\"\"))","v":"2022-03-13"},null,{"$f":"IF(DAY(AprSøn1)=1,IF(AND(YEAR(AprSøn1+1)=Kalenderår,MONTH(AprSøn1+1)=4),AprSøn1+1,\"\"),IF(AND(YEAR(AprSøn1+8)=Kalenderår,MONTH(AprSøn1+8)=4),AprSøn1+8,\"\"))","v":"2022-04-04"},{"$f":"IF(DAY(AprSøn1)=1,IF(AND(YEAR(AprSøn1+2)=Kalenderår,MONTH(AprSøn1+2)=4),AprSøn1+2,\"\"),IF(AND(YEAR(AprSøn1+9)=Kalenderår,MONTH(AprSøn1+9)=4),AprSøn1+9,\"\"))","v":"2022-04-05"},{"$f":"IF(DAY(AprSøn1)=1,IF(AND(YEAR(AprSøn1+3)=Kalenderår,MONTH(AprSøn1+3)=4),AprSøn1+3,\"\"),IF(AND(YEAR(AprSøn1+10)=Kalenderår,MONTH(AprSøn1+10)=4),AprSøn1+10,\"\"))","v":"2022-04-06"},{"$f":"IF(DAY(AprSøn1)=1,IF(AND(YEAR(AprSøn1+4)=Kalenderår,MONTH(AprSøn1+4)=4),AprSøn1+4,\"\"),IF(AND(YEAR(AprSøn1+11)=Kalenderår,MONTH(AprSøn1+11)=4),AprSøn1+11,\"\"))","v":"2022-04-07"},{"$f":"IF(DAY(AprSøn1)=1,IF(AND(YEAR(AprSøn1+5)=Kalenderår,MONTH(AprSøn1+5)=4),AprSøn1+5,\"\"),IF(AND(YEAR(AprSøn1+12)=Kalenderår,MONTH(AprSøn1+12)=4),AprSøn1+12,\"\"))","v":"2022-04-08"},{"$f":"IF(DAY(AprSøn1)=1,IF(AND(YEAR(AprSøn1+6)=Kalenderår,MONTH(AprSøn1+6)=4),AprSøn1+6,\"\"),IF(AND(YEAR(AprSøn1+13)=Kalenderår,MONTH(AprSøn1+13)=4),AprSøn1+13,\"\"))","v":"2022-04-09"},{"$f":"IF(DAY(AprSøn1)=1,IF(AND(YEAR(AprSøn1+7)=Kalenderår,MONTH(AprSøn1+7)=4),AprSøn1+7,\"\"),IF(AND(YEAR(AprSøn1+14)=Kalenderår,MONTH(AprSøn1+14)=4),AprSøn1+14,\"\"))","v":"2022-04-10"}]
[null,null,{"$f":"IF(DAY(MarSøn1)=1,IF(AND(YEAR(MarSøn1+8)=Kalenderår,MONTH(MarSøn1+8)=3),MarSøn1+8,\"\"),IF(AND(YEAR(MarSøn1+15)=Kalenderår,MONTH(MarSøn1+15)=3),MarSøn1+15,\"\"))","v":"2022-03-14"},{"$f":"IF(DAY(MarSøn1)=1,IF(AND(YEAR(MarSøn1+9)=Kalenderår,MONTH(MarSøn1+9)=3),MarSøn1+9,\"\"),IF(AND(YEAR(MarSøn1+16)=Kalenderår,MONTH(MarSøn1+16)=3),MarSøn1+16,\"\"))","v":"2022-03-15"},{"$f":"IF(DAY(MarSøn1)=1,IF(AND(YEAR(MarSøn1+10)=Kalenderår,MONTH(MarSøn1+10)=3),MarSøn1+10,\"\"),IF(AND(YEAR(MarSøn1+17)=Kalenderår,MONTH(MarSøn1+17)=3),MarSøn1+17,\"\"))","v":"2022-03-16"},{"$f":"IF(DAY(MarSøn1)=1,IF(AND(YEAR(MarSøn1+11)=Kalenderår,MONTH(MarSøn1+11)=3),MarSøn1+11,\"\"),IF(AND(YEAR(MarSøn1+18)=Kalenderår,MONTH(MarSøn1+18)=3),MarSøn1+18,\"\"))","v":"2022-03-17"},{"$f":"IF(DAY(MarSøn1)=1,IF(AND(YEAR(MarSøn1+12)=Kalenderår,MONTH(MarSøn1+12)=3),MarSøn1+12,\"\"),IF(AND(YEAR(MarSøn1+19)=Kalenderår,MONTH(MarSøn1+19)=3),MarSøn1+19,\"\"))","v":"2022-03-18"},{"$f":"IF(DAY(MarSøn1)=1,IF(AND(YEAR(MarSøn1+13)=Kalenderår,MONTH(MarSøn1+13)=3),MarSøn1+13,\"\"),IF(AND(YEAR(MarSøn1+20)=Kalenderår,MONTH(MarSøn1+20)=3),MarSøn1+20,\"\"))","v":"2022-03-19"},{"$f":"IF(DAY(MarSøn1)=1,IF(AND(YEAR(MarSøn1+14)=Kalenderår,MONTH(MarSøn1+14)=3),MarSøn1+14,\"\"),IF(AND(YEAR(MarSøn1+21)=Kalenderår,MONTH(MarSøn1+21)=3),MarSøn1+21,\"\"))","v":"2022-03-20"},null,{"$f":"IF(DAY(AprSøn1)=1,IF(AND(YEAR(AprSøn1+8)=Kalenderår,MONTH(AprSøn1+8)=4),AprSøn1+8,\"\"),IF(AND(YEAR(AprSøn1+15)=Kalenderår,MONTH(AprSøn1+15)=4),AprSøn1+15,\"\"))","v":"2022-04-11"},{"$f":"IF(DAY(AprSøn1)=1,IF(AND(YEAR(AprSøn1+9)=Kalenderår,MONTH(AprSøn1+9)=4),AprSøn1+9,\"\"),IF(AND(YEAR(AprSøn1+16)=Kalenderår,MONTH(AprSøn1+16)=4),AprSøn1+16,\"\"))","v":"2022-04-12"},{"$f":"IF(DAY(AprSøn1)=1,IF(AND(YEAR(AprSøn1+10)=Kalenderår,MONTH(AprSøn1+10)=4),AprSøn1+10,\"\"),IF(AND(YEAR(AprSøn1+17)=Kalenderår,MONTH(AprSøn1+17)=4),AprSøn1+17,\"\"))","v":"2022-04-13"},{"$f":"IF(DAY(AprSøn1)=1,IF(AND(YEAR(AprSøn1+11)=Kalenderår,MONTH(AprSøn1+11)=4),AprSøn1+11,\"\"),IF(AND(YEAR(AprSøn1+18)=Kalenderår,MONTH(AprSøn1+18)=4),AprSøn1+18,\"\"))","v":"2022-04-14"},{"$f":"IF(DAY(AprSøn1)=1,IF(AND(YEAR(AprSøn1+12)=Kalenderår,MONTH(AprSøn1+12)=4),AprSøn1+12,\"\"),IF(AND(YEAR(AprSøn1+19)=Kalenderår,MONTH(AprSøn1+19)=4),AprSøn1+19,\"\"))","v":"2022-04-15"},{"$f":"IF(DAY(AprSøn1)=1,IF(AND(YEAR(AprSøn1+13)=Kalenderår,MONTH(AprSøn1+13)=4),AprSøn1+13,\"\"),IF(AND(YEAR(AprSøn1+20)=Kalenderår,MONTH(AprSøn1+20)=4),AprSøn1+20,\"\"))","v":"2022-04-16"},{"$f":"IF(DAY(AprSøn1)=1,IF(AND(YEAR(AprSøn1+14)=Kalenderår,MONTH(AprSøn1+14)=4),AprSøn1+14,\"\"),IF(AND(YEAR(AprSøn1+21)=Kalenderår,MONTH(AprSøn1+21)=4),AprSøn1+21,\"\"))","v":"2022-04-17"}]
[null,null,{"$f":"IF(DAY(MarSøn1)=1,IF(AND(YEAR(MarSøn1+15)=Kalenderår,MONTH(MarSøn1+15)=3),MarSøn1+15,\"\"),IF(AND(YEAR(MarSøn1+22)=Kalenderår,MONTH(MarSøn1+22)=3),MarSøn1+22,\"\"))","v":"2022-03-21"},{"$f":"IF(DAY(MarSøn1)=1,IF(AND(YEAR(MarSøn1+16)=Kalenderår,MONTH(MarSøn1+16)=3),MarSøn1+16,\"\"),IF(AND(YEAR(MarSøn1+23)=Kalenderår,MONTH(MarSøn1+23)=3),MarSøn1+23,\"\"))","v":"2022-03-22"},{"$f":"IF(DAY(MarSøn1)=1,IF(AND(YEAR(MarSøn1+17)=Kalenderår,MONTH(MarSøn1+17)=3),MarSøn1+17,\"\"),IF(AND(YEAR(MarSøn1+24)=Kalenderår,MONTH(MarSøn1+24)=3),MarSøn1+24,\"\"))","v":"2022-03-23"},{"$f":"IF(DAY(MarSøn1)=1,IF(AND(YEAR(MarSøn1+18)=Kalenderår,MONTH(MarSøn1+18)=3),MarSøn1+18,\"\"),IF(AND(YEAR(MarSøn1+25)=Kalenderår,MONTH(MarSøn1+25)=3),MarSøn1+25,\"\"))","v":"2022-03-24"},{"$f":"IF(DAY(MarSøn1)=1,IF(AND(YEAR(MarSøn1+19)=Kalenderår,MONTH(MarSøn1+19)=3),MarSøn1+19,\"\"),IF(AND(YEAR(MarSøn1+26)=Kalenderår,MONTH(MarSøn1+26)=3),MarSøn1+26,\"\"))","v":"2022-03-25"},{"$f":"IF(DAY(MarSøn1)=1,IF(AND(YEAR(MarSøn1+20)=Kalenderår,MONTH(MarSøn1+20)=3),MarSøn1+20,\"\"),IF(AND(YEAR(MarSøn1+27)=Kalenderår,MONTH(MarSøn1+27)=3),MarSøn1+27,\"\"))","v":"2022-03-26"},{"$f":"IF(DAY(MarSøn1)=1,IF(AND(YEAR(MarSøn1+21)=Kalenderår,MONTH(MarSøn1+21)=3),MarSøn1+21,\"\"),IF(AND(YEAR(MarSøn1+28)=Kalenderår,MONTH(MarSøn1+28)=3),MarSøn1+28,\"\"))","v":"2022-03-27"},null,{"$f":"IF(DAY(AprSøn1)=1,IF(AND(YEAR(AprSøn1+15)=Kalenderår,MONTH(AprSøn1+15)=4),AprSøn1+15,\"\"),IF(AND(YEAR(AprSøn1+22)=Kalenderår,MONTH(AprSøn1+22)=4),AprSøn1+22,\"\"))","v":"2022-04-18"},{"$f":"IF(DAY(AprSøn1)=1,IF(AND(YEAR(AprSøn1+16)=Kalenderår,MONTH(AprSøn1+16)=4),AprSøn1+16,\"\"),IF(AND(YEAR(AprSøn1+23)=Kalenderår,MONTH(AprSøn1+23)=4),AprSøn1+23,\"\"))","v":"2022-04-19"},{"$f":"IF(DAY(AprSøn1)=1,IF(AND(YEAR(AprSøn1+17)=Kalenderår,MONTH(AprSøn1+17)=4),AprSøn1+17,\"\"),IF(AND(YEAR(AprSøn1+24)=Kalenderår,MONTH(AprSøn1+24)=4),AprSøn1+24,\"\"))","v":"2022-04-20"},{"$f":"IF(DAY(AprSøn1)=1,IF(AND(YEAR(AprSøn1+18)=Kalenderår,MONTH(AprSøn1+18)=4),AprSøn1+18,\"\"),IF(AND(YEAR(AprSøn1+25)=Kalenderår,MONTH(AprSøn1+25)=4),AprSøn1+25,\"\"))","v":"2022-04-21"},{"$f":"IF(DAY(AprSøn1)=1,IF(AND(YEAR(AprSøn1+19)=Kalenderår,MONTH(AprSøn1+19)=4),AprSøn1+19,\"\"),IF(AND(YEAR(AprSøn1+26)=Kalenderår,MONTH(AprSøn1+26)=4),AprSøn1+26,\"\"))","v":"2022-04-22"},{"$f":"IF(DAY(AprSøn1)=1,IF(AND(YEAR(AprSøn1+20)=Kalenderår,MONTH(AprSøn1+20)=4),AprSøn1+20,\"\"),IF(AND(YEAR(AprSøn1+27)=Kalenderår,MONTH(AprSøn1+27)=4),AprSøn1+27,\"\"))","v":"2022-04-23"},{"$f":"IF(DAY(AprSøn1)=1,IF(AND(YEAR(AprSøn1+21)=Kalenderår,MONTH(AprSøn1+21)=4),AprSøn1+21,\"\"),IF(AND(YEAR(AprSøn1+28)=Kalenderår,MONTH(AprSøn1+28)=4),AprSøn1+28,\"\"))","v":"2022-04-24"}]
[null,null,{"$f":"IF(DAY(MarSøn1)=1,IF(AND(YEAR(MarSøn1+22)=Kalenderår,MONTH(MarSøn1+22)=3),MarSøn1+22,\"\"),IF(AND(YEAR(MarSøn1+29)=Kalenderår,MONTH(MarSøn1+29)=3),MarSøn1+29,\"\"))","v":"2022-03-28"},{"$f":"IF(DAY(MarSøn1)=1,IF(AND(YEAR(MarSøn1+23)=Kalenderår,MONTH(MarSøn1+23)=3),MarSøn1+23,\"\"),IF(AND(YEAR(MarSøn1+30)=Kalenderår,MONTH(MarSøn1+30)=3),MarSøn1+30,\"\"))","v":"2022-03-29"},{"$f":"IF(DAY(MarSøn1)=1,IF(AND(YEAR(MarSøn1+24)=Kalenderår,MONTH(MarSøn1+24)=3),MarSøn1+24,\"\"),IF(AND(YEAR(MarSøn1+31)=Kalenderår,MONTH(MarSøn1+31)=3),MarSøn1+31,\"\"))","v":"2022-03-30"},{"$f":"IF(DAY(MarSøn1)=1,IF(AND(YEAR(MarSøn1+25)=Kalenderår,MONTH(MarSøn1+25)=3),MarSøn1+25,\"\"),IF(AND(YEAR(MarSøn1+32)=Kalenderår,MONTH(MarSøn1+32)=3),MarSøn1+32,\"\"))","v":"2022-03-31"},{"$f":"IF(DAY(MarSøn1)=1,IF(AND(YEAR(MarSøn1+26)=Kalenderår,MONTH(MarSøn1+26)=3),MarSøn1+26,\"\"),IF(AND(YEAR(MarSøn1+33)=Kalenderår,MONTH(MarSøn1+33)=3),MarSøn1+33,\"\"))","v":""},{"$f":"IF(DAY(MarSøn1)=1,IF(AND(YEAR(MarSøn1+27)=Kalenderår,MONTH(MarSøn1+27)=3),MarSøn1+27,\"\"),IF(AND(YEAR(MarSøn1+34)=Kalenderår,MONTH(MarSøn1+34)=3),MarSøn1+34,\"\"))","v":""},{"$f":"IF(DAY(MarSøn1)=1,IF(AND(YEAR(MarSøn1+28)=Kalenderår,MONTH(MarSøn1+28)=3),MarSøn1+28,\"\"),IF(AND(YEAR(MarSøn1+35)=Kalenderår,MONTH(MarSøn1+35)=3),MarSøn1+35,\"\"))","v":""},null,{"$f":"IF(DAY(AprSøn1)=1,IF(AND(YEAR(AprSøn1+22)=Kalenderår,MONTH(AprSøn1+22)=4),AprSøn1+22,\"\"),IF(AND(YEAR(AprSøn1+29)=Kalenderår,MONTH(AprSøn1+29)=4),AprSøn1+29,\"\"))","v":"2022-04-25"},{"$f":"IF(DAY(AprSøn1)=1,IF(AND(YEAR(AprSøn1+23)=Kalenderår,MONTH(AprSøn1+23)=4),AprSøn1+23,\"\"),IF(AND(YEAR(AprSøn1+30)=Kalenderår,MONTH(AprSøn1+30)=4),AprSøn1+30,\"\"))","v":"2022-04-26"},{"$f":"IF(DAY(AprSøn1)=1,IF(AND(YEAR(AprSøn1+24)=Kalenderår,MONTH(AprSøn1+24)=4),AprSøn1+24,\"\"),IF(AND(YEAR(AprSøn1+31)=Kalenderår,MONTH(AprSøn1+31)=4),AprSøn1+31,\"\"))","v":"2022-04-27"},{"$f":"IF(DAY(AprSøn1)=1,IF(AND(YEAR(AprSøn1+25)=Kalenderår,MONTH(AprSøn1+25)=4),AprSøn1+25,\"\"),IF(AND(YEAR(AprSøn1+32)=Kalenderår,MONTH(AprSøn1+32)=4),AprSøn1+32,\"\"))","v":"2022-04-28"},{"$f":"IF(DAY(AprSøn1)=1,IF(AND(YEAR(AprSøn1+26)=Kalenderår,MONTH(AprSøn1+26)=4),AprSøn1+26,\"\"),IF(AND(YEAR(AprSøn1+33)=Kalenderår,MONTH(AprSøn1+33)=4),AprSøn1+33,\"\"))","v":"2022-04-29"},{"$f":"IF(DAY(AprSøn1)=1,IF(AND(YEAR(AprSøn1+27)=Kalenderår,MONTH(AprSøn1+27)=4),AprSøn1+27,\"\"),IF(AND(YEAR(AprSøn1+34)=Kalenderår,MONTH(AprSøn1+34)=4),AprSøn1+34,\"\"))","v":"2022-04-30"},{"$f":"IF(DAY(AprSøn1)=1,IF(AND(YEAR(AprSøn1+28)=Kalenderår,MONTH(AprSøn1+28)=4),AprSøn1+28,\"\"),IF(AND(YEAR(AprSøn1+35)=Kalenderår,MONTH(AprSøn1+35)=4),AprSøn1+35,\"\"))","v":""}]
[null,null,{"$f":"IF(DAY(MarSøn1)=1,IF(AND(YEAR(MarSøn1+29)=Kalenderår,MONTH(MarSøn1+29)=3),MarSøn1+29,\"\"),IF(AND(YEAR(MarSøn1+36)=Kalenderår,MONTH(MarSøn1+36)=3),MarSøn1+36,\"\"))","v":""},{"$f":"IF(DAY(MarSøn1)=1,IF(AND(YEAR(MarSøn1+30)=Kalenderår,MONTH(MarSøn1+30)=3),MarSøn1+30,\"\"),IF(AND(YEAR(MarSøn1+37)=Kalenderår,MONTH(MarSøn1+37)=3),MarSøn1+37,\"\"))","v":""},{"$f":"IF(DAY(MarSøn1)=1,IF(AND(YEAR(MarSøn1+31)=Kalenderår,MONTH(MarSøn1+31)=3),MarSøn1+31,\"\"),IF(AND(YEAR(MarSøn1+38)=Kalenderår,MONTH(MarSøn1+38)=3),MarSøn1+38,\"\"))","v":""},{"$f":"IF(DAY(MarSøn1)=1,IF(AND(YEAR(MarSøn1+32)=Kalenderår,MONTH(MarSøn1+32)=3),MarSøn1+32,\"\"),IF(AND(YEAR(MarSøn1+39)=Kalenderår,MONTH(MarSøn1+39)=3),MarSøn1+39,\"\"))","v":""},{"$f":"IF(DAY(MarSøn1)=1,IF(AND(YEAR(MarSøn1+33)=Kalenderår,MONTH(MarSøn1+33)=3),MarSøn1+33,\"\"),IF(AND(YEAR(MarSøn1+40)=Kalenderår,MONTH(MarSøn1+40)=3),MarSøn1+40,\"\"))","v":""},{"$f":"IF(DAY(MarSøn1)=1,IF(AND(YEAR(MarSøn1+34)=Kalenderår,MONTH(MarSøn1+34)=3),MarSøn1+34,\"\"),IF(AND(YEAR(MarSøn1+41)=Kalenderår,MONTH(MarSøn1+41)=3),MarSøn1+41,\"\"))","v":""},{"$f":"IF(DAY(MarSøn1)=1,IF(AND(YEAR(MarSøn1+35)=Kalenderår,MONTH(MarSøn1+35)=3),MarSøn1+35,\"\"),IF(AND(YEAR(MarSøn1+42)=Kalenderår,MONTH(MarSøn1+42)=3),MarSøn1+42,\"\"))","v":""},null,{"$f":"IF(DAY(AprSøn1)=1,IF(AND(YEAR(AprSøn1+29)=Kalenderår,MONTH(AprSøn1+29)=4),AprSøn1+29,\"\"),IF(AND(YEAR(AprSøn1+36)=Kalenderår,MONTH(AprSøn1+36)=4),AprSøn1+36,\"\"))","v":""},{"$f":"IF(DAY(AprSøn1)=1,IF(AND(YEAR(AprSøn1+30)=Kalenderår,MONTH(AprSøn1+30)=4),AprSøn1+30,\"\"),IF(AND(YEAR(AprSøn1+37)=Kalenderår,MONTH(AprSøn1+37)=4),AprSøn1+37,\"\"))","v":""},{"$f":"IF(DAY(AprSøn1)=1,IF(AND(YEAR(AprSøn1+31)=Kalenderår,MONTH(AprSøn1+31)=4),AprSøn1+31,\"\"),IF(AND(YEAR(AprSøn1+38)=Kalenderår,MONTH(AprSøn1+38)=4),AprSøn1+38,\"\"))","v":""},{"$f":"IF(DAY(AprSøn1)=1,IF(AND(YEAR(AprSøn1+32)=Kalenderår,MONTH(AprSøn1+32)=4),AprSøn1+32,\"\"),IF(AND(YEAR(AprSøn1+39)=Kalenderår,MONTH(AprSøn1+39)=4),AprSøn1+39,\"\"))","v":""},{"$f":"IF(DAY(AprSøn1)=1,IF(AND(YEAR(AprSøn1+33)=Kalenderår,MONTH(AprSøn1+33)=4),AprSøn1+33,\"\"),IF(AND(YEAR(AprSøn1+40)=Kalenderår,MONTH(AprSøn1+40)=4),AprSøn1+40,\"\"))","v":""},{"$f":"IF(DAY(AprSøn1)=1,IF(AND(YEAR(AprSøn1+34)=Kalenderår,MONTH(AprSøn1+34)=4),AprSøn1+34,\"\"),IF(AND(YEAR(AprSøn1+41)=Kalenderår,MONTH(AprSøn1+41)=4),AprSøn1+41,\"\"))","v":""},{"$f":"IF(DAY(AprSøn1)=1,IF(AND(YEAR(AprSøn1+35)=Kalenderår,MONTH(AprSøn1+35)=4),AprSøn1+35,\"\"),IF(AND(YEAR(AprSøn1+42)=Kalenderår,MONTH(AprSøn1+42)=4),AprSøn1+42,\"\"))","v":""}]
[]
["Du finner etiketten for mai i celle C21 og juni i celle K21",null,"MAI",{"$nulls":7},"JUNI"]
["Du finner tabellen for maikalenderen i celle C22 til I28 og junikalenderen i celle K22 til Q28. Du finner neste instruksjon i celle A30",null,"MA.","TI.","ON.","TO.","FR.","LØ.","SØ.",null,"MA.","TI.","ON.","TO.","FR.","LØ.","SØ."]
[null,null,{"$f":"IF(DAY(MaiSøn1)=1,\"\",IF(AND(YEAR(MaiSøn1+1)=Kalenderår,MONTH(MaiSøn1+1)=5),MaiSøn1+1,\"\"))","v":""},{"$f":"IF(DAY(MaiSøn1)=1,\"\",IF(AND(YEAR(MaiSøn1+2)=Kalenderår,MONTH(MaiSøn1+2)=5),MaiSøn1+2,\"\"))","v":""},{"$f":"IF(DAY(MaiSøn1)=1,\"\",IF(AND(YEAR(MaiSøn1+3)=Kalenderår,MONTH(MaiSøn1+3)=5),MaiSøn1+3,\"\"))","v":""},{"$f":"IF(DAY(MaiSøn1)=1,\"\",IF(AND(YEAR(MaiSøn1+4)=Kalenderår,MONTH(MaiSøn1+4)=5),MaiSøn1+4,\"\"))","v":""},{"$f":"IF(DAY(MaiSøn1)=1,\"\",IF(AND(YEAR(MaiSøn1+5)=Kalenderår,MONTH(MaiSøn1+5)=5),MaiSøn1+5,\"\"))","v":""},{"$f":"IF(DAY(MaiSøn1)=1,\"\",IF(AND(YEAR(MaiSøn1+6)=Kalenderår,MONTH(MaiSøn1+6)=5),MaiSøn1+6,\"\"))","v":""},{"$f":"IF(DAY(MaiSøn1)=1,IF(AND(YEAR(MaiSøn1)=Kalenderår,MONTH(MaiSøn1)=5),MaiSøn1,\"\"),IF(AND(YEAR(MaiSøn1+7)=Kalenderår,MONTH(MaiSøn1+7)=5),MaiSøn1+7,\"\"))","v":"2022-05-01"},null,{"$f":"IF(DAY(JunSøn1)=1,\"\",IF(AND(YEAR(JunSøn1+1)=Kalenderår,MONTH(JunSøn1+1)=6),JunSøn1+1,\"\"))","v":""},{"$f":"IF(DAY(JunSøn1)=1,\"\",IF(AND(YEAR(JunSøn1+2)=Kalenderår,MONTH(JunSøn1+2)=6),JunSøn1+2,\"\"))","v":""},{"$f":"IF(DAY(JunSøn1)=1,\"\",IF(AND(YEAR(JunSøn1+3)=Kalenderår,MONTH(JunSøn1+3)=6),JunSøn1+3,\"\"))","v":"2022-06-01"},{"$f":"IF(DAY(JunSøn1)=1,\"\",IF(AND(YEAR(JunSøn1+4)=Kalenderår,MONTH(JunSøn1+4)=6),JunSøn1+4,\"\"))","v":"2022-06-02"},{"$f":"IF(DAY(JunSøn1)=1,\"\",IF(AND(YEAR(JunSøn1+5)=Kalenderår,MONTH(JunSøn1+5)=6),JunSøn1+5,\"\"))","v":"2022-06-03"},{"$f":"IF(DAY(JunSøn1)=1,\"\",IF(AND(YEAR(JunSøn1+6)=Kalenderår,MONTH(JunSøn1+6)=6),JunSøn1+6,\"\"))","v":"2022-06-04"},{"$f":"IF(DAY(JunSøn1)=1,IF(AND(YEAR(JunSøn1)=Kalenderår,MONTH(JunSøn1)=6),JunSøn1,\"\"),IF(AND(YEAR(JunSøn1+7)=Kalenderår,MONTH(JunSøn1+7)=6),JunSøn1+7,\"\"))","v":"2022-06-05"}]
[null,null,{"$f":"IF(DAY(MaiSøn1)=1,IF(AND(YEAR(MaiSøn1+1)=Kalenderår,MONTH(MaiSøn1+1)=5),MaiSøn1+1,\"\"),IF(AND(YEAR(MaiSøn1+8)=Kalenderår,MONTH(MaiSøn1+8)=5),MaiSøn1+8,\"\"))","v":"2022-05-02"},{"$f":"IF(DAY(MaiSøn1)=1,IF(AND(YEAR(MaiSøn1+2)=Kalenderår,MONTH(MaiSøn1+2)=5),MaiSøn1+2,\"\"),IF(AND(YEAR(MaiSøn1+9)=Kalenderår,MONTH(MaiSøn1+9)=5),MaiSøn1+9,\"\"))","v":"2022-05-03"},{"$f":"IF(DAY(MaiSøn1)=1,IF(AND(YEAR(MaiSøn1+3)=Kalenderår,MONTH(MaiSøn1+3)=5),MaiSøn1+3,\"\"),IF(AND(YEAR(MaiSøn1+10)=Kalenderår,MONTH(MaiSøn1+10)=5),MaiSøn1+10,\"\"))","v":"2022-05-04"},{"$f":"IF(DAY(MaiSøn1)=1,IF(AND(YEAR(MaiSøn1+4)=Kalenderår,MONTH(MaiSøn1+4)=5),MaiSøn1+4,\"\"),IF(AND(YEAR(MaiSøn1+11)=Kalenderår,MONTH(MaiSøn1+11)=5),MaiSøn1+11,\"\"))","v":"2022-05-05"},{"$f":"IF(DAY(MaiSøn1)=1,IF(AND(YEAR(MaiSøn1+5)=Kalenderår,MONTH(MaiSøn1+5)=5),MaiSøn1+5,\"\"),IF(AND(YEAR(MaiSøn1+12)=Kalenderår,MONTH(MaiSøn1+12)=5),MaiSøn1+12,\"\"))","v":"2022-05-06"},{"$f":"IF(DAY(MaiSøn1)=1,IF(AND(YEAR(MaiSøn1+6)=Kalenderår,MONTH(MaiSøn1+6)=5),MaiSøn1+6,\"\"),IF(AND(YEAR(MaiSøn1+13)=Kalenderår,MONTH(MaiSøn1+13)=5),MaiSøn1+13,\"\"))","v":"2022-05-07"},{"$f":"IF(DAY(MaiSøn1)=1,IF(AND(YEAR(MaiSøn1+7)=Kalenderår,MONTH(MaiSøn1+7)=5),MaiSøn1+7,\"\"),IF(AND(YEAR(MaiSøn1+14)=Kalenderår,MONTH(MaiSøn1+14)=5),MaiSøn1+14,\"\"))","v":"2022-05-08"},null,{"$f":"IF(DAY(JunSøn1)=1,IF(AND(YEAR(JunSøn1+1)=Kalenderår,MONTH(JunSøn1+1)=6),JunSøn1+1,\"\"),IF(AND(YEAR(JunSøn1+8)=Kalenderår,MONTH(JunSøn1+8)=6),JunSøn1+8,\"\"))","v":"2022-06-06"},{"$f":"IF(DAY(JunSøn1)=1,IF(AND(YEAR(JunSøn1+2)=Kalenderår,MONTH(JunSøn1+2)=6),JunSøn1+2,\"\"),IF(AND(YEAR(JunSøn1+9)=Kalenderår,MONTH(JunSøn1+9)=6),JunSøn1+9,\"\"))","v":"2022-06-07"},{"$f":"IF(DAY(JunSøn1)=1,IF(AND(YEAR(JunSøn1+3)=Kalenderår,MONTH(JunSøn1+3)=6),JunSøn1+3,\"\"),IF(AND(YEAR(JunSøn1+10)=Kalenderår,MONTH(JunSøn1+10)=6),JunSøn1+10,\"\"))","v":"2022-06-08"},{"$f":"IF(DAY(JunSøn1)=1,IF(AND(YEAR(JunSøn1+4)=Kalenderår,MONTH(JunSøn1+4)=6),JunSøn1+4,\"\"),IF(AND(YEAR(JunSøn1+11)=Kalenderår,MONTH(JunSøn1+11)=6),JunSøn1+11,\"\"))","v":"2022-06-09"},{"$f":"IF(DAY(JunSøn1)=1,IF(AND(YEAR(JunSøn1+5)=Kalenderår,MONTH(JunSøn1+5)=6),JunSøn1+5,\"\"),IF(AND(YEAR(JunSøn1+12)=Kalenderår,MONTH(JunSøn1+12)=6),JunSøn1+12,\"\"))","v":"2022-06-10"},{"$f":"IF(DAY(JunSøn1)=1,IF(AND(YEAR(JunSøn1+6)=Kalenderår,MONTH(JunSøn1+6)=6),JunSøn1+6,\"\"),IF(AND(YEAR(JunSøn1+13)=Kalenderår,MONTH(JunSøn1+13)=6),JunSøn1+13,\"\"))","v":"2022-06-11"},{"$f":"IF(DAY(JunSøn1)=1,IF(AND(YEAR(JunSøn1+7)=Kalenderår,MONTH(JunSøn1+7)=6),JunSøn1+7,\"\"),IF(AND(YEAR(JunSøn1+14)=Kalenderår,MONTH(JunSøn1+14)=6),JunSøn1+14,\"\"))","v":"2022-06-12"}]
[null,null,{"$f":"IF(DAY(MaiSøn1)=1,IF(AND(YEAR(MaiSøn1+8)=Kalenderår,MONTH(MaiSøn1+8)=5),MaiSøn1+8,\"\"),IF(AND(YEAR(MaiSøn1+15)=Kalenderår,MONTH(MaiSøn1+15)=5),MaiSøn1+15,\"\"))","v":"2022-05-09"},{"$f":"IF(DAY(MaiSøn1)=1,IF(AND(YEAR(MaiSøn1+9)=Kalenderår,MONTH(MaiSøn1+9)=5),MaiSøn1+9,\"\"),IF(AND(YEAR(MaiSøn1+16)=Kalenderår,MONTH(MaiSøn1+16)=5),MaiSøn1+16,\"\"))","v":"2022-05-10"},{"$f":"IF(DAY(MaiSøn1)=1,IF(AND(YEAR(MaiSøn1+10)=Kalenderår,MONTH(MaiSøn1+10)=5),MaiSøn1+10,\"\"),IF(AND(YEAR(MaiSøn1+17)=Kalenderår,MONTH(MaiSøn1+17)=5),MaiSøn1+17,\"\"))","v":"2022-05-11"},{"$f":"IF(DAY(MaiSøn1)=1,IF(AND(YEAR(MaiSøn1+11)=Kalenderår,MONTH(MaiSøn1+11)=5),MaiSøn1+11,\"\"),IF(AND(YEAR(MaiSøn1+18)=Kalenderår,MONTH(MaiSøn1+18)=5),MaiSøn1+18,\"\"))","v":"2022-05-12"},{"$f":"IF(DAY(MaiSøn1)=1,IF(AND(YEAR(MaiSøn1+12)=Kalenderår,MONTH(MaiSøn1+12)=5),MaiSøn1+12,\"\"),IF(AND(YEAR(MaiSøn1+19)=Kalenderår,MONTH(MaiSøn1+19)=5),MaiSøn1+19,\"\"))","v":"2022-05-13"},{"$f":"IF(DAY(MaiSøn1)=1,IF(AND(YEAR(MaiSøn1+13)=Kalenderår,MONTH(MaiSøn1+13)=5),MaiSøn1+13,\"\"),IF(AND(YEAR(MaiSøn1+20)=Kalenderår,MONTH(MaiSøn1+20)=5),MaiSøn1+20,\"\"))","v":"2022-05-14"},{"$f":"IF(DAY(MaiSøn1)=1,IF(AND(YEAR(MaiSøn1+14)=Kalenderår,MONTH(MaiSøn1+14)=5),MaiSøn1+14,\"\"),IF(AND(YEAR(MaiSøn1+21)=Kalenderår,MONTH(MaiSøn1+21)=5),MaiSøn1+21,\"\"))","v":"2022-05-15"},null,{"$f":"IF(DAY(JunSøn1)=1,IF(AND(YEAR(JunSøn1+8)=Kalenderår,MONTH(JunSøn1+8)=6),JunSøn1+8,\"\"),IF(AND(YEAR(JunSøn1+15)=Kalenderår,MONTH(JunSøn1+15)=6),JunSøn1+15,\"\"))","v":"2022-06-13"},{"$f":"IF(DAY(JunSøn1)=1,IF(AND(YEAR(JunSøn1+9)=Kalenderår,MONTH(JunSøn1+9)=6),JunSøn1+9,\"\"),IF(AND(YEAR(JunSøn1+16)=Kalenderår,MONTH(JunSøn1+16)=6),JunSøn1+16,\"\"))","v":"2022-06-14"},{"$f":"IF(DAY(JunSøn1)=1,IF(AND(YEAR(JunSøn1+10)=Kalenderår,MONTH(JunSøn1+10)=6),JunSøn1+10,\"\"),IF(AND(YEAR(JunSøn1+17)=Kalenderår,MONTH(JunSøn1+17)=6),JunSøn1+17,\"\"))","v":"2022-06-15"},{"$f":"IF(DAY(JunSøn1)=1,IF(AND(YEAR(JunSøn1+11)=Kalenderår,MONTH(JunSøn1+11)=6),JunSøn1+11,\"\"),IF(AND(YEAR(JunSøn1+18)=Kalenderår,MONTH(JunSøn1+18)=6),JunSøn1+18,\"\"))","v":"2022-06-16"},{"$f":"IF(DAY(JunSøn1)=1,IF(AND(YEAR(JunSøn1+12)=Kalenderår,MONTH(JunSøn1+12)=6),JunSøn1+12,\"\"),IF(AND(YEAR(JunSøn1+19)=Kalenderår,MONTH(JunSøn1+19)=6),JunSøn1+19,\"\"))","v":"2022-06-17"},{"$f":"IF(DAY(JunSøn1)=1,IF(AND(YEAR(JunSøn1+13)=Kalenderår,MONTH(JunSøn1+13)=6),JunSøn1+13,\"\"),IF(AND(YEAR(JunSøn1+20)=Kalenderår,MONTH(JunSøn1+20)=6),JunSøn1+20,\"\"))","v":"2022-06-18"},{"$f":"IF(DAY(JunSøn1)=1,IF(AND(YEAR(JunSøn1+14)=Kalenderår,MONTH(JunSøn1+14)=6),JunSøn1+14,\"\"),IF(AND(YEAR(JunSøn1+21)=Kalenderår,MONTH(JunSøn1+21)=6),JunSøn1+21,\"\"))","v":"2022-06-19"}]
[null,null,{"$f":"IF(DAY(MaiSøn1)=1,IF(AND(YEAR(MaiSøn1+15)=Kalenderår,MONTH(MaiSøn1+15)=5),MaiSøn1+15,\"\"),IF(AND(YEAR(MaiSøn1+22)=Kalenderår,MONTH(MaiSøn1+22)=5),MaiSøn1+22,\"\"))","v":"2022-05-16"},{"$f":"IF(DAY(MaiSøn1)=1,IF(AND(YEAR(MaiSøn1+16)=Kalenderår,MONTH(MaiSøn1+16)=5),MaiSøn1+16,\"\"),IF(AND(YEAR(MaiSøn1+23)=Kalenderår,MONTH(MaiSøn1+23)=5),MaiSøn1+23,\"\"))","v":"2022-05-17"},{"$f":"IF(DAY(MaiSøn1)=1,IF(AND(YEAR(MaiSøn1+17)=Kalenderår,MONTH(MaiSøn1+17)=5),MaiSøn1+17,\"\"),IF(AND(YEAR(MaiSøn1+24)=Kalenderår,MONTH(MaiSøn1+24)=5),MaiSøn1+24,\"\"))","v":"2022-05-18"},{"$f":"IF(DAY(MaiSøn1)=1,IF(AND(YEAR(MaiSøn1+18)=Kalenderår,MONTH(MaiSøn1+18)=5),MaiSøn1+18,\"\"),IF(AND(YEAR(MaiSøn1+25)=Kalenderår,MONTH(MaiSøn1+25)=5),MaiSøn1+25,\"\"))","v":"2022-05-19"},{"$f":"IF(DAY(MaiSøn1)=1,IF(AND(YEAR(MaiSøn1+19)=Kalenderår,MONTH(MaiSøn1+19)=5),MaiSøn1+19,\"\"),IF(AND(YEAR(MaiSøn1+26)=Kalenderår,MONTH(MaiSøn1+26)=5),MaiSøn1+26,\"\"))","v":"2022-05-20"},{"$f":"IF(DAY(MaiSøn1)=1,IF(AND(YEAR(MaiSøn1+20)=Kalenderår,MONTH(MaiSøn1+20)=5),MaiSøn1+20,\"\"),IF(AND(YEAR(MaiSøn1+27)=Kalenderår,MONTH(MaiSøn1+27)=5),MaiSøn1+27,\"\"))","v":"2022-05-21"},{"$f":"IF(DAY(MaiSøn1)=1,IF(AND(YEAR(MaiSøn1+21)=Kalenderår,MONTH(MaiSøn1+21)=5),MaiSøn1+21,\"\"),IF(AND(YEAR(MaiSøn1+28)=Kalenderår,MONTH(MaiSøn1+28)=5),MaiSøn1+28,\"\"))","v":"2022-05-22"},null,{"$f":"IF(DAY(JunSøn1)=1,IF(AND(YEAR(JunSøn1+15)=Kalenderår,MONTH(JunSøn1+15)=6),JunSøn1+15,\"\"),IF(AND(YEAR(JunSøn1+22)=Kalenderår,MONTH(JunSøn1+22)=6),JunSøn1+22,\"\"))","v":"2022-06-20"},{"$f":"IF(DAY(JunSøn1)=1,IF(AND(YEAR(JunSøn1+16)=Kalenderår,MONTH(JunSøn1+16)=6),JunSøn1+16,\"\"),IF(AND(YEAR(JunSøn1+23)=Kalenderår,MONTH(JunSøn1+23)=6),JunSøn1+23,\"\"))","v":"2022-06-21"},{"$f":"IF(DAY(JunSøn1)=1,IF(AND(YEAR(JunSøn1+17)=Kalenderår,MONTH(JunSøn1+17)=6),JunSøn1+17,\"\"),IF(AND(YEAR(JunSøn1+24)=Kalenderår,MONTH(JunSøn1+24)=6),JunSøn1+24,\"\"))","v":"2022-06-22"},{"$f":"IF(DAY(JunSøn1)=1,IF(AND(YEAR(JunSøn1+18)=Kalenderår,MONTH(JunSøn1+18)=6),JunSøn1+18,\"\"),IF(AND(YEAR(JunSøn1+25)=Kalenderår,MONTH(JunSøn1+25)=6),JunSøn1+25,\"\"))","v":"2022-06-23"},{"$f":"IF(DAY(JunSøn1)=1,IF(AND(YEAR(JunSøn1+19)=Kalenderår,MONTH(JunSøn1+19)=6),JunSøn1+19,\"\"),IF(AND(YEAR(JunSøn1+26)=Kalenderår,MONTH(JunSøn1+26)=6),JunSøn1+26,\"\"))","v":"2022-06-24"},{"$f":"IF(DAY(JunSøn1)=1,IF(AND(YEAR(JunSøn1+20)=Kalenderår,MONTH(JunSøn1+20)=6),JunSøn1+20,\"\"),IF(AND(YEAR(JunSøn1+27)=Kalenderår,MONTH(JunSøn1+27)=6),JunSøn1+27,\"\"))","v":"2022-06-25"},{"$f":"IF(DAY(JunSøn1)=1,IF(AND(YEAR(JunSøn1+21)=Kalenderår,MONTH(JunSøn1+21)=6),JunSøn1+21,\"\"),IF(AND(YEAR(JunSøn1+28)=Kalenderår,MONTH(JunSøn1+28)=6),JunSøn1+28,\"\"))","v":"2022-06-26"}]
[null,null,{"$f":"IF(DAY(MaiSøn1)=1,IF(AND(YEAR(MaiSøn1+22)=Kalenderår,MONTH(MaiSøn1+22)=5),MaiSøn1+22,\"\"),IF(AND(YEAR(MaiSøn1+29)=Kalenderår,MONTH(MaiSøn1+29)=5),MaiSøn1+29,\"\"))","v":"2022-05-23"},{"$f":"IF(DAY(MaiSøn1)=1,IF(AND(YEAR(MaiSøn1+23)=Kalenderår,MONTH(MaiSøn1+23)=5),MaiSøn1+23,\"\"),IF(AND(YEAR(MaiSøn1+30)=Kalenderår,MONTH(MaiSøn1+30)=5),MaiSøn1+30,\"\"))","v":"2022-05-24"},{"$f":"IF(DAY(MaiSøn1)=1,IF(AND(YEAR(MaiSøn1+24)=Kalenderår,MONTH(MaiSøn1+24)=5),MaiSøn1+24,\"\"),IF(AND(YEAR(MaiSøn1+31)=Kalenderår,MONTH(MaiSøn1+31)=5),MaiSøn1+31,\"\"))","v":"2022-05-25"},{"$f":"IF(DAY(MaiSøn1)=1,IF(AND(YEAR(MaiSøn1+25)=Kalenderår,MONTH(MaiSøn1+25)=5),MaiSøn1+25,\"\"),IF(AND(YEAR(MaiSøn1+32)=Kalenderår,MONTH(MaiSøn1+32)=5),MaiSøn1+32,\"\"))","v":"2022-05-26"},{"$f":"IF(DAY(MaiSøn1)=1,IF(AND(YEAR(MaiSøn1+26)=Kalenderår,MONTH(MaiSøn1+26)=5),MaiSøn1+26,\"\"),IF(AND(YEAR(MaiSøn1+33)=Kalenderår,MONTH(MaiSøn1+33)=5),MaiSøn1+33,\"\"))","v":"2022-05-27"},{"$f":"IF(DAY(MaiSøn1)=1,IF(AND(YEAR(MaiSøn1+27)=Kalenderår,MONTH(MaiSøn1+27)=5),MaiSøn1+27,\"\"),IF(AND(YEAR(MaiSøn1+34)=Kalenderår,MONTH(MaiSøn1+34)=5),MaiSøn1+34,\"\"))","v":"2022-05-28"},{"$f":"IF(DAY(MaiSøn1)=1,IF(AND(YEAR(MaiSøn1+28)=Kalenderår,MONTH(MaiSøn1+28)=5),MaiSøn1+28,\"\"),IF(AND(YEAR(MaiSøn1+35)=Kalenderår,MONTH(MaiSøn1+35)=5),MaiSøn1+35,\"\"))","v":"2022-05-29"},null,{"$f":"IF(DAY(JunSøn1)=1,IF(AND(YEAR(JunSøn1+22)=Kalenderår,MONTH(JunSøn1+22)=6),JunSøn1+22,\"\"),IF(AND(YEAR(JunSøn1+29)=Kalenderår,MONTH(JunSøn1+29)=6),JunSøn1+29,\"\"))","v":"2022-06-27"},{"$f":"IF(DAY(JunSøn1)=1,IF(AND(YEAR(JunSøn1+23)=Kalenderår,MONTH(JunSøn1+23)=6),JunSøn1+23,\"\"),IF(AND(YEAR(JunSøn1+30)=Kalenderår,MONTH(JunSøn1+30)=6),JunSøn1+30,\"\"))","v":"2022-06-28"},{"$f":"IF(DAY(JunSøn1)=1,IF(AND(YEAR(JunSøn1+24)=Kalenderår,MONTH(JunSøn1+24)=6),JunSøn1+24,\"\"),IF(AND(YEAR(JunSøn1+31)=Kalenderår,MONTH(JunSøn1+31)=6),JunSøn1+31,\"\"))","v":"2022-06-29"},{"$f":"IF(DAY(JunSøn1)=1,IF(AND(YEAR(JunSøn1+25)=Kalenderår,MONTH(JunSøn1+25)=6),JunSøn1+25,\"\"),IF(AND(YEAR(JunSøn1+32)=Kalenderår,MONTH(JunSøn1+32)=6),JunSøn1+32,\"\"))","v":"2022-06-30"},{"$f":"IF(DAY(JunSøn1)=1,IF(AND(YEAR(JunSøn1+26)=Kalenderår,MONTH(JunSøn1+26)=6),JunSøn1+26,\"\"),IF(AND(YEAR(JunSøn1+33)=Kalenderår,MONTH(JunSøn1+33)=6),JunSøn1+33,\"\"))","v":""},{"$f":"IF(DAY(JunSøn1)=1,IF(AND(YEAR(JunSøn1+27)=Kalenderår,MONTH(JunSøn1+27)=6),JunSøn1+27,\"\"),IF(AND(YEAR(JunSøn1+34)=Kalenderår,MONTH(JunSøn1+34)=6),JunSøn1+34,\"\"))","v":""},{"$f":"IF(DAY(JunSøn1)=1,IF(AND(YEAR(JunSøn1+28)=Kalenderår,MONTH(JunSøn1+28)=6),JunSøn1+28,\"\"),IF(AND(YEAR(JunSøn1+35)=Kalenderår,MONTH(JunSøn1+35)=6),JunSøn1+35,\"\"))","v":""}]
[null,null,{"$f":"IF(DAY(MaiSøn1)=1,IF(AND(YEAR(MaiSøn1+29)=Kalenderår,MONTH(MaiSøn1+29)=5),MaiSøn1+29,\"\"),IF(AND(YEAR(MaiSøn1+36)=Kalenderår,MONTH(MaiSøn1+36)=5),MaiSøn1+36,\"\"))","v":"2022-05-30"},{"$f":"IF(DAY(MaiSøn1)=1,IF(AND(YEAR(MaiSøn1+30)=Kalenderår,MONTH(MaiSøn1+30)=5),MaiSøn1+30,\"\"),IF(AND(YEAR(MaiSøn1+37)=Kalenderår,MONTH(MaiSøn1+37)=5),MaiSøn1+37,\"\"))","v":"2022-05-31"},{"$f":"IF(DAY(MaiSøn1)=1,IF(AND(YEAR(MaiSøn1+31)=Kalenderår,MONTH(MaiSøn1+31)=5),MaiSøn1+31,\"\"),IF(AND(YEAR(MaiSøn1+38)=Kalenderår,MONTH(MaiSøn1+38)=5),MaiSøn1+38,\"\"))","v":""},{"$f":"IF(DAY(MaiSøn1)=1,IF(AND(YEAR(MaiSøn1+32)=Kalenderår,MONTH(MaiSøn1+32)=5),MaiSøn1+32,\"\"),IF(AND(YEAR(MaiSøn1+39)=Kalenderår,MONTH(MaiSøn1+39)=5),MaiSøn1+39,\"\"))","v":""},{"$f":"IF(DAY(MaiSøn1)=1,IF(AND(YEAR(MaiSøn1+33)=Kalenderår,MONTH(MaiSøn1+33)=5),MaiSøn1+33,\"\"),IF(AND(YEAR(MaiSøn1+40)=Kalenderår,MONTH(MaiSøn1+40)=5),MaiSøn1+40,\"\"))","v":""},{"$f":"IF(DAY(MaiSøn1)=1,IF(AND(YEAR(MaiSøn1+34)=Kalenderår,MONTH(MaiSøn1+34)=5),MaiSøn1+34,\"\"),IF(AND(YEAR(MaiSøn1+41)=Kalenderår,MONTH(MaiSøn1+41)=5),MaiSøn1+41,\"\"))","v":""},{"$f":"IF(DAY(MaiSøn1)=1,IF(AND(YEAR(MaiSøn1+35)=Kalenderår,MONTH(MaiSøn1+35)=5),MaiSøn1+35,\"\"),IF(AND(YEAR(MaiSøn1+42)=Kalenderår,MONTH(MaiSøn1+42)=5),MaiSøn1+42,\"\"))","v":""},null,{"$f":"IF(DAY(JunSøn1)=1,IF(AND(YEAR(JunSøn1+29)=Kalenderår,MONTH(JunSøn1+29)=6),JunSøn1+29,\"\"),IF(AND(YEAR(JunSøn1+36)=Kalenderår,MONTH(JunSøn1+36)=6),JunSøn1+36,\"\"))","v":""},{"$f":"IF(DAY(JunSøn1)=1,IF(AND(YEAR(JunSøn1+30)=Kalenderår,MONTH(JunSøn1+30)=6),JunSøn1+30,\"\"),IF(AND(YEAR(JunSøn1+37)=Kalenderår,MONTH(JunSøn1+37)=6),JunSøn1+37,\"\"))","v":""},{"$f":"IF(DAY(JunSøn1)=1,IF(AND(YEAR(JunSøn1+31)=Kalenderår,MONTH(JunSøn1+31)=6),JunSøn1+31,\"\"),IF(AND(YEAR(JunSøn1+38)=Kalenderår,MONTH(JunSøn1+38)=6),JunSøn1+38,\"\"))","v":""},{"$f":"IF(DAY(JunSøn1)=1,IF(AND(YEAR(JunSøn1+32)=Kalenderår,MONTH(JunSøn1+32)=6),JunSøn1+32,\"\"),IF(AND(YEAR(JunSøn1+39)=Kalenderår,MONTH(JunSøn1+39)=6),JunSøn1+39,\"\"))","v":""},{"$f":"IF(DAY(JunSøn1)=1,IF(AND(YEAR(JunSøn1+33)=Kalenderår,MONTH(JunSøn1+33)=6),JunSøn1+33,\"\"),IF(AND(YEAR(JunSøn1+40)=Kalenderår,MONTH(JunSøn1+40)=6),JunSøn1+40,\"\"))","v":""},{"$f":"IF(DAY(JunSøn1)=1,IF(AND(YEAR(JunSøn1+34)=Kalenderår,MONTH(JunSøn1+34)=6),JunSøn1+34,\"\"),IF(AND(YEAR(JunSøn1+41)=Kalenderår,MONTH(JunSøn1+41)=6),JunSøn1+41,\"\"))","v":""},{"$f":"IF(DAY(JunSøn1)=1,IF(AND(YEAR(JunSøn1+35)=Kalenderår,MONTH(JunSøn1+35)=6),JunSøn1+35,\"\"),IF(AND(YEAR(JunSøn1+42)=Kalenderår,MONTH(JunSøn1+42)=6),JunSøn1+42,\"\"))","v":""}]
[]
["Du finner etiketten for juli i celle C30 og august i celle K30",null,"JULI",{"$nulls":7},"AUGUST"]
["Du finner tabellen for julikalenderen i celle C31 til I37 og augustkalenderen i celle K31 til Q37. Du finner neste instruksjon i celle A39",null,"MA.","TI.","ON.","TO.","FR.","LØ.","SØ.",null,"MA.","TI.","ON.","TO.","FR.","LØ.","SØ."]
[null,null,{"$f":"IF(DAY(JulSøn1)=1,\"\",IF(AND(YEAR(JulSøn1+1)=Kalenderår,MONTH(JulSøn1+1)=7),JulSøn1+1,\"\"))","v":""},{"$f":"IF(DAY(JulSøn1)=1,\"\",IF(AND(YEAR(JulSøn1+2)=Kalenderår,MONTH(JulSøn1+2)=7),JulSøn1+2,\"\"))","v":""},{"$f":"IF(DAY(JulSøn1)=1,\"\",IF(AND(YEAR(JulSøn1+3)=Kalenderår,MONTH(JulSøn1+3)=7),JulSøn1+3,\"\"))","v":""},{"$f":"IF(DAY(JulSøn1)=1,\"\",IF(AND(YEAR(JulSøn1+4)=Kalenderår,MONTH(JulSøn1+4)=7),JulSøn1+4,\"\"))","v":""},{"$f":"IF(DAY(JulSøn1)=1,\"\",IF(AND(YEAR(JulSøn1+5)=Kalenderår,MONTH(JulSøn1+5)=7),JulSøn1+5,\"\"))","v":"2022-07-01"},{"$f":"IF(DAY(JulSøn1)=1,\"\",IF(AND(YEAR(JulSøn1+6)=Kalenderår,MONTH(JulSøn1+6)=7),JulSøn1+6,\"\"))","v":"2022-07-02"},{"$f":"IF(DAY(JulSøn1)=1,IF(AND(YEAR(JulSøn1)=Kalenderår,MONTH(JulSøn1)=7),JulSøn1,\"\"),IF(AND(YEAR(JulSøn1+7)=Kalenderår,MONTH(JulSøn1+7)=7),JulSøn1+7,\"\"))","v":"2022-07-03"},null,{"$f":"IF(DAY(AugSøn1)=1,\"\",IF(AND(YEAR(AugSøn1+1)=Kalenderår,MONTH(AugSøn1+1)=8),AugSøn1+1,\"\"))","v":"2022-08-01"},{"$f":"IF(DAY(AugSøn1)=1,\"\",IF(AND(YEAR(AugSøn1+2)=Kalenderår,MONTH(AugSøn1+2)=8),AugSøn1+2,\"\"))","v":"2022-08-02"},{"$f":"IF(DAY(AugSøn1)=1,\"\",IF(AND(YEAR(AugSøn1+3)=Kalenderår,MONTH(AugSøn1+3)=8),AugSøn1+3,\"\"))","v":"2022-08-03"},{"$f":"IF(DAY(AugSøn1)=1,\"\",IF(AND(YEAR(AugSøn1+4)=Kalenderår,MONTH(AugSøn1+4)=8),AugSøn1+4,\"\"))","v":"2022-08-04"},{"$f":"IF(DAY(AugSøn1)=1,\"\",IF(AND(YEAR(AugSøn1+5)=Kalenderår,MONTH(AugSøn1+5)=8),AugSøn1+5,\"\"))","v":"2022-08-05"},{"$f":"IF(DAY(AugSøn1)=1,\"\",IF(AND(YEAR(AugSøn1+6)=Kalenderår,MONTH(AugSøn1+6)=8),AugSøn1+6,\"\"))","v":"2022-08-06"},{"$f":"IF(DAY(AugSøn1)=1,IF(AND(YEAR(AugSøn1)=Kalenderår,MONTH(AugSøn1)=8),AugSøn1,\"\"),IF(AND(YEAR(AugSøn1+7)=Kalenderår,MONTH(AugSøn1+7)=8),AugSøn1+7,\"\"))","v":"2022-08-07"}]
[null,null,{"$f":"IF(DAY(JulSøn1)=1,IF(AND(YEAR(JulSøn1+1)=Kalenderår,MONTH(JulSøn1+1)=7),JulSøn1+1,\"\"),IF(AND(YEAR(JulSøn1+8)=Kalenderår,MONTH(JulSøn1+8)=7),JulSøn1+8,\"\"))","v":"2022-07-04"},{"$f":"IF(DAY(JulSøn1)=1,IF(AND(YEAR(JulSøn1+2)=Kalenderår,MONTH(JulSøn1+2)=7),JulSøn1+2,\"\"),IF(AND(YEAR(JulSøn1+9)=Kalenderår,MONTH(JulSøn1+9)=7),JulSøn1+9,\"\"))","v":"2022-07-05"},{"$f":"IF(DAY(JulSøn1)=1,IF(AND(YEAR(JulSøn1+3)=Kalenderår,MONTH(JulSøn1+3)=7),JulSøn1+3,\"\"),IF(AND(YEAR(JulSøn1+10)=Kalenderår,MONTH(JulSøn1+10)=7),JulSøn1+10,\"\"))","v":"2022-07-06"},{"$f":"IF(DAY(JulSøn1)=1,IF(AND(YEAR(JulSøn1+4)=Kalenderår,MONTH(JulSøn1+4)=7),JulSøn1+4,\"\"),IF(AND(YEAR(JulSøn1+11)=Kalenderår,MONTH(JulSøn1+11)=7),JulSøn1+11,\"\"))","v":"2022-07-07"},{"$f":"IF(DAY(JulSøn1)=1,IF(AND(YEAR(JulSøn1+5)=Kalenderår,MONTH(JulSøn1+5)=7),JulSøn1+5,\"\"),IF(AND(YEAR(JulSøn1+12)=Kalenderår,MONTH(JulSøn1+12)=7),JulSøn1+12,\"\"))","v":"2022-07-08"},{"$f":"IF(DAY(JulSøn1)=1,IF(AND(YEAR(JulSøn1+6)=Kalenderår,MONTH(JulSøn1+6)=7),JulSøn1+6,\"\"),IF(AND(YEAR(JulSøn1+13)=Kalenderår,MONTH(JulSøn1+13)=7),JulSøn1+13,\"\"))","v":"2022-07-09"},{"$f":"IF(DAY(JulSøn1)=1,IF(AND(YEAR(JulSøn1+7)=Kalenderår,MONTH(JulSøn1+7)=7),JulSøn1+7,\"\"),IF(AND(YEAR(JulSøn1+14)=Kalenderår,MONTH(JulSøn1+14)=7),JulSøn1+14,\"\"))","v":"2022-07-10"},null,{"$f":"IF(DAY(AugSøn1)=1,IF(AND(YEAR(AugSøn1+1)=Kalenderår,MONTH(AugSøn1+1)=8),AugSøn1+1,\"\"),IF(AND(YEAR(AugSøn1+8)=Kalenderår,MONTH(AugSøn1+8)=8),AugSøn1+8,\"\"))","v":"2022-08-08"},{"$f":"IF(DAY(AugSøn1)=1,IF(AND(YEAR(AugSøn1+2)=Kalenderår,MONTH(AugSøn1+2)=8),AugSøn1+2,\"\"),IF(AND(YEAR(AugSøn1+9)=Kalenderår,MONTH(AugSøn1+9)=8),AugSøn1+9,\"\"))","v":"2022-08-09"},{"$f":"IF(DAY(AugSøn1)=1,IF(AND(YEAR(AugSøn1+3)=Kalenderår,MONTH(AugSøn1+3)=8),AugSøn1+3,\"\"),IF(AND(YEAR(AugSøn1+10)=Kalenderår,MONTH(AugSøn1+10)=8),AugSøn1+10,\"\"))","v":"2022-08-10"},{"$f":"IF(DAY(AugSøn1)=1,IF(AND(YEAR(AugSøn1+4)=Kalenderår,MONTH(AugSøn1+4)=8),AugSøn1+4,\"\"),IF(AND(YEAR(AugSøn1+11)=Kalenderår,MONTH(AugSøn1+11)=8),AugSøn1+11,\"\"))","v":"2022-08-11"},{"$f":"IF(DAY(AugSøn1)=1,IF(AND(YEAR(AugSøn1+5)=Kalenderår,MONTH(AugSøn1+5)=8),AugSøn1+5,\"\"),IF(AND(YEAR(AugSøn1+12)=Kalenderår,MONTH(AugSøn1+12)=8),AugSøn1+12,\"\"))","v":"2022-08-12"},{"$f":"IF(DAY(AugSøn1)=1,IF(AND(YEAR(AugSøn1+6)=Kalenderår,MONTH(AugSøn1+6)=8),AugSøn1+6,\"\"),IF(AND(YEAR(AugSøn1+13)=Kalenderår,MONTH(AugSøn1+13)=8),AugSøn1+13,\"\"))","v":"2022-08-13"},{"$f":"IF(DAY(AugSøn1)=1,IF(AND(YEAR(AugSøn1+7)=Kalenderår,MONTH(AugSøn1+7)=8),AugSøn1+7,\"\"),IF(AND(YEAR(AugSøn1+14)=Kalenderår,MONTH(AugSøn1+14)=8),AugSøn1+14,\"\"))","v":"2022-08-14"}]
[null,null,{"$f":"IF(DAY(JulSøn1)=1,IF(AND(YEAR(JulSøn1+8)=Kalenderår,MONTH(JulSøn1+8)=7),JulSøn1+8,\"\"),IF(AND(YEAR(JulSøn1+15)=Kalenderår,MONTH(JulSøn1+15)=7),JulSøn1+15,\"\"))","v":"2022-07-11"},{"$f":"IF(DAY(JulSøn1)=1,IF(AND(YEAR(JulSøn1+9)=Kalenderår,MONTH(JulSøn1+9)=7),JulSøn1+9,\"\"),IF(AND(YEAR(JulSøn1+16)=Kalenderår,MONTH(JulSøn1+16)=7),JulSøn1+16,\"\"))","v":"2022-07-12"},{"$f":"IF(DAY(JulSøn1)=1,IF(AND(YEAR(JulSøn1+10)=Kalenderår,MONTH(JulSøn1+10)=7),JulSøn1+10,\"\"),IF(AND(YEAR(JulSøn1+17)=Kalenderår,MONTH(JulSøn1+17)=7),JulSøn1+17,\"\"))","v":"2022-07-13"},{"$f":"IF(DAY(JulSøn1)=1,IF(AND(YEAR(JulSøn1+11)=Kalenderår,MONTH(JulSøn1+11)=7),JulSøn1+11,\"\"),IF(AND(YEAR(JulSøn1+18)=Kalenderår,MONTH(JulSøn1+18)=7),JulSøn1+18,\"\"))","v":"2022-07-14"},{"$f":"IF(DAY(JulSøn1)=1,IF(AND(YEAR(JulSøn1+12)=Kalenderår,MONTH(JulSøn1+12)=7),JulSøn1+12,\"\"),IF(AND(YEAR(JulSøn1+19)=Kalenderår,MONTH(JulSøn1+19)=7),JulSøn1+19,\"\"))","v":"2022-07-15"},{"$f":"IF(DAY(JulSøn1)=1,IF(AND(YEAR(JulSøn1+13)=Kalenderår,MONTH(JulSøn1+13)=7),JulSøn1+13,\"\"),IF(AND(YEAR(JulSøn1+20)=Kalenderår,MONTH(JulSøn1+20)=7),JulSøn1+20,\"\"))","v":"2022-07-16"},{"$f":"IF(DAY(JulSøn1)=1,IF(AND(YEAR(JulSøn1+14)=Kalenderår,MONTH(JulSøn1+14)=7),JulSøn1+14,\"\"),IF(AND(YEAR(JulSøn1+21)=Kalenderår,MONTH(JulSøn1+21)=7),JulSøn1+21,\"\"))","v":"2022-07-17"},null,{"$f":"IF(DAY(AugSøn1)=1,IF(AND(YEAR(AugSøn1+8)=Kalenderår,MONTH(AugSøn1+8)=8),AugSøn1+8,\"\"),IF(AND(YEAR(AugSøn1+15)=Kalenderår,MONTH(AugSøn1+15)=8),AugSøn1+15,\"\"))","v":"2022-08-15"},{"$f":"IF(DAY(AugSøn1)=1,IF(AND(YEAR(AugSøn1+9)=Kalenderår,MONTH(AugSøn1+9)=8),AugSøn1+9,\"\"),IF(AND(YEAR(AugSøn1+16)=Kalenderår,MONTH(AugSøn1+16)=8),AugSøn1+16,\"\"))","v":"2022-08-16"},{"$f":"IF(DAY(AugSøn1)=1,IF(AND(YEAR(AugSøn1+10)=Kalenderår,MONTH(AugSøn1+10)=8),AugSøn1+10,\"\"),IF(AND(YEAR(AugSøn1+17)=Kalenderår,MONTH(AugSøn1+17)=8),AugSøn1+17,\"\"))","v":"2022-08-17"},{"$f":"IF(DAY(AugSøn1)=1,IF(AND(YEAR(AugSøn1+11)=Kalenderår,MONTH(AugSøn1+11)=8),AugSøn1+11,\"\"),IF(AND(YEAR(AugSøn1+18)=Kalenderår,MONTH(AugSøn1+18)=8),AugSøn1+18,\"\"))","v":"2022-08-18"},{"$f":"IF(DAY(AugSøn1)=1,IF(AND(YEAR(AugSøn1+12)=Kalenderår,MONTH(AugSøn1+12)=8),AugSøn1+12,\"\"),IF(AND(YEAR(AugSøn1+19)=Kalenderår,MONTH(AugSøn1+19)=8),AugSøn1+19,\"\"))","v":"2022-08-19"},{"$f":"IF(DAY(AugSøn1)=1,IF(AND(YEAR(AugSøn1+13)=Kalenderår,MONTH(AugSøn1+13)=8),AugSøn1+13,\"\"),IF(AND(YEAR(AugSøn1+20)=Kalenderår,MONTH(AugSøn1+20)=8),AugSøn1+20,\"\"))","v":"2022-08-20"},{"$f":"IF(DAY(AugSøn1)=1,IF(AND(YEAR(AugSøn1+14)=Kalenderår,MONTH(AugSøn1+14)=8),AugSøn1+14,\"\"),IF(AND(YEAR(AugSøn1+21)=Kalenderår,MONTH(AugSøn1+21)=8),AugSøn1+21,\"\"))","v":"2022-08-21"}]
[null,null,{"$f":"IF(DAY(JulSøn1)=1,IF(AND(YEAR(JulSøn1+15)=Kalenderår,MONTH(JulSøn1+15)=7),JulSøn1+15,\"\"),IF(AND(YEAR(JulSøn1+22)=Kalenderår,MONTH(JulSøn1+22)=7),JulSøn1+22,\"\"))","v":"2022-07-18"},{"$f":"IF(DAY(JulSøn1)=1,IF(AND(YEAR(JulSøn1+16)=Kalenderår,MONTH(JulSøn1+16)=7),JulSøn1+16,\"\"),IF(AND(YEAR(JulSøn1+23)=Kalenderår,MONTH(JulSøn1+23)=7),JulSøn1+23,\"\"))","v":"2022-07-19"},{"$f":"IF(DAY(JulSøn1)=1,IF(AND(YEAR(JulSøn1+17)=Kalenderår,MONTH(JulSøn1+17)=7),JulSøn1+17,\"\"),IF(AND(YEAR(JulSøn1+24)=Kalenderår,MONTH(JulSøn1+24)=7),JulSøn1+24,\"\"))","v":"2022-07-20"},{"$f":"IF(DAY(JulSøn1)=1,IF(AND(YEAR(JulSøn1+18)=Kalenderår,MONTH(JulSøn1+18)=7),JulSøn1+18,\"\"),IF(AND(YEAR(JulSøn1+25)=Kalenderår,MONTH(JulSøn1+25)=7),JulSøn1+25,\"\"))","v":"2022-07-21"},{"$f":"IF(DAY(JulSøn1)=1,IF(AND(YEAR(JulSøn1+19)=Kalenderår,MONTH(JulSøn1+19)=7),JulSøn1+19,\"\"),IF(AND(YEAR(JulSøn1+26)=Kalenderår,MONTH(JulSøn1+26)=7),JulSøn1+26,\"\"))","v":"2022-07-22"},{"$f":"IF(DAY(JulSøn1)=1,IF(AND(YEAR(JulSøn1+20)=Kalenderår,MONTH(JulSøn1+20)=7),JulSøn1+20,\"\"),IF(AND(YEAR(JulSøn1+27)=Kalenderår,MONTH(JulSøn1+27)=7),JulSøn1+27,\"\"))","v":"2022-07-23"},{"$f":"IF(DAY(JulSøn1)=1,IF(AND(YEAR(JulSøn1+21)=Kalenderår,MONTH(JulSøn1+21)=7),JulSøn1+21,\"\"),IF(AND(YEAR(JulSøn1+28)=Kalenderår,MONTH(JulSøn1+28)=7),JulSøn1+28,\"\"))","v":"2022-07-24"},null,{"$f":"IF(DAY(AugSøn1)=1,IF(AND(YEAR(AugSøn1+15)=Kalenderår,MONTH(AugSøn1+15)=8),AugSøn1+15,\"\"),IF(AND(YEAR(AugSøn1+22)=Kalenderår,MONTH(AugSøn1+22)=8),AugSøn1+22,\"\"))","v":"2022-08-22"},{"$f":"IF(DAY(AugSøn1)=1,IF(AND(YEAR(AugSøn1+16)=Kalenderår,MONTH(AugSøn1+16)=8),AugSøn1+16,\"\"),IF(AND(YEAR(AugSøn1+23)=Kalenderår,MONTH(AugSøn1+23)=8),AugSøn1+23,\"\"))","v":"2022-08-23"},{"$f":"IF(DAY(AugSøn1)=1,IF(AND(YEAR(AugSøn1+17)=Kalenderår,MONTH(AugSøn1+17)=8),AugSøn1+17,\"\"),IF(AND(YEAR(AugSøn1+24)=Kalenderår,MONTH(AugSøn1+24)=8),AugSøn1+24,\"\"))","v":"2022-08-24"},{"$f":"IF(DAY(AugSøn1)=1,IF(AND(YEAR(AugSøn1+18)=Kalenderår,MONTH(AugSøn1+18)=8),AugSøn1+18,\"\"),IF(AND(YEAR(AugSøn1+25)=Kalenderår,MONTH(AugSøn1+25)=8),AugSøn1+25,\"\"))","v":"2022-08-25"},{"$f":"IF(DAY(AugSøn1)=1,IF(AND(YEAR(AugSøn1+19)=Kalenderår,MONTH(AugSøn1+19)=8),AugSøn1+19,\"\"),IF(AND(YEAR(AugSøn1+26)=Kalenderår,MONTH(AugSøn1+26)=8),AugSøn1+26,\"\"))","v":"2022-08-26"},{"$f":"IF(DAY(AugSøn1)=1,IF(AND(YEAR(AugSøn1+20)=Kalenderår,MONTH(AugSøn1+20)=8),AugSøn1+20,\"\"),IF(AND(YEAR(AugSøn1+27)=Kalenderår,MONTH(AugSøn1+27)=8),AugSøn1+27,\"\"))","v":"2022-08-27"},{"$f":"IF(DAY(AugSøn1)=1,IF(AND(YEAR(AugSøn1+21)=Kalenderår,MONTH(AugSøn1+21)=8),AugSøn1+21,\"\"),IF(AND(YEAR(AugSøn1+28)=Kalenderår,MONTH(AugSøn1+28)=8),AugSøn1+28,\"\"))","v":"2022-08-28"}]
[null,null,{"$f":"IF(DAY(JulSøn1)=1,IF(AND(YEAR(JulSøn1+22)=Kalenderår,MONTH(JulSøn1+22)=7),JulSøn1+22,\"\"),IF(AND(YEAR(JulSøn1+29)=Kalenderår,MONTH(JulSøn1+29)=7),JulSøn1+29,\"\"))","v":"2022-07-25"},{"$f":"IF(DAY(JulSøn1)=1,IF(AND(YEAR(JulSøn1+23)=Kalenderår,MONTH(JulSøn1+23)=7),JulSøn1+23,\"\"),IF(AND(YEAR(JulSøn1+30)=Kalenderår,MONTH(JulSøn1+30)=7),JulSøn1+30,\"\"))","v":"2022-07-26"},{"$f":"IF(DAY(JulSøn1)=1,IF(AND(YEAR(JulSøn1+24)=Kalenderår,MONTH(JulSøn1+24)=7),JulSøn1+24,\"\"),IF(AND(YEAR(JulSøn1+31)=Kalenderår,MONTH(JulSøn1+31)=7),JulSøn1+31,\"\"))","v":"2022-07-27"},{"$f":"IF(DAY(JulSøn1)=1,IF(AND(YEAR(JulSøn1+25)=Kalenderår,MONTH(JulSøn1+25)=7),JulSøn1+25,\"\"),IF(AND(YEAR(JulSøn1+32)=Kalenderår,MONTH(JulSøn1+32)=7),JulSøn1+32,\"\"))","v":"2022-07-28"},{"$f":"IF(DAY(JulSøn1)=1,IF(AND(YEAR(JulSøn1+26)=Kalenderår,MONTH(JulSøn1+26)=7),JulSøn1+26,\"\"),IF(AND(YEAR(JulSøn1+33)=Kalenderår,MONTH(JulSøn1+33)=7),JulSøn1+33,\"\"))","v":"2022-07-29"},{"$f":"IF(DAY(JulSøn1)=1,IF(AND(YEAR(JulSøn1+27)=Kalenderår,MONTH(JulSøn1+27)=7),JulSøn1+27,\"\"),IF(AND(YEAR(JulSøn1+34)=Kalenderår,MONTH(JulSøn1+34)=7),JulSøn1+34,\"\"))","v":"2022-07-30"},{"$f":"IF(DAY(JulSøn1)=1,IF(AND(YEAR(JulSøn1+28)=Kalenderår,MONTH(JulSøn1+28)=7),JulSøn1+28,\"\"),IF(AND(YEAR(JulSøn1+35)=Kalenderår,MONTH(JulSøn1+35)=7),JulSøn1+35,\"\"))","v":"2022-07-31"},null,{"$f":"IF(DAY(AugSøn1)=1,IF(AND(YEAR(AugSøn1+22)=Kalenderår,MONTH(AugSøn1+22)=8),AugSøn1+22,\"\"),IF(AND(YEAR(AugSøn1+29)=Kalenderår,MONTH(AugSøn1+29)=8),AugSøn1+29,\"\"))","v":"2022-08-29"},{"$f":"IF(DAY(AugSøn1)=1,IF(AND(YEAR(AugSøn1+23)=Kalenderår,MONTH(AugSøn1+23)=8),AugSøn1+23,\"\"),IF(AND(YEAR(AugSøn1+30)=Kalenderår,MONTH(AugSøn1+30)=8),AugSøn1+30,\"\"))","v":"2022-08-30"},{"$f":"IF(DAY(AugSøn1)=1,IF(AND(YEAR(AugSøn1+24)=Kalenderår,MONTH(AugSøn1+24)=8),AugSøn1+24,\"\"),IF(AND(YEAR(AugSøn1+31)=Kalenderår,MONTH(AugSøn1+31)=8),AugSøn1+31,\"\"))","v":"2022-08-31"},{"$f":"IF(DAY(AugSøn1)=1,IF(AND(YEAR(AugSøn1+25)=Kalenderår,MONTH(AugSøn1+25)=8),AugSøn1+25,\"\"),IF(AND(YEAR(AugSøn1+32)=Kalenderår,MONTH(AugSøn1+32)=8),AugSøn1+32,\"\"))","v":""},{"$f":"IF(DAY(AugSøn1)=1,IF(AND(YEAR(AugSøn1+26)=Kalenderår,MONTH(AugSøn1+26)=8),AugSøn1+26,\"\"),IF(AND(YEAR(AugSøn1+33)=Kalenderår,MONTH(AugSøn1+33)=8),AugSøn1+33,\"\"))","v":""},{"$f":"IF(DAY(AugSøn1)=1,IF(AND(YEAR(AugSøn1+27)=Kalenderår,MONTH(AugSøn1+27)=8),AugSøn1+27,\"\"),IF(AND(YEAR(AugSøn1+34)=Kalenderår,MONTH(AugSøn1+34)=8),AugSøn1+34,\"\"))","v":""},{"$f":"IF(DAY(AugSøn1)=1,IF(AND(YEAR(AugSøn1+28)=Kalenderår,MONTH(AugSøn1+28)=8),AugSøn1+28,\"\"),IF(AND(YEAR(AugSøn1+35)=Kalenderår,MONTH(AugSøn1+35)=8),AugSøn1+35,\"\"))","v":""}]
[null,null,{"$f":"IF(DAY(JulSøn1)=1,IF(AND(YEAR(JulSøn1+29)=Kalenderår,MONTH(JulSøn1+29)=7),JulSøn1+29,\"\"),IF(AND(YEAR(JulSøn1+36)=Kalenderår,MONTH(JulSøn1+36)=7),JulSøn1+36,\"\"))","v":""},{"$f":"IF(DAY(JulSøn1)=1,IF(AND(YEAR(JulSøn1+30)=Kalenderår,MONTH(JulSøn1+30)=7),JulSøn1+30,\"\"),IF(AND(YEAR(JulSøn1+37)=Kalenderår,MONTH(JulSøn1+37)=7),JulSøn1+37,\"\"))","v":""},{"$f":"IF(DAY(JulSøn1)=1,IF(AND(YEAR(JulSøn1+31)=Kalenderår,MONTH(JulSøn1+31)=7),JulSøn1+31,\"\"),IF(AND(YEAR(JulSøn1+38)=Kalenderår,MONTH(JulSøn1+38)=7),JulSøn1+38,\"\"))","v":""},{"$f":"IF(DAY(JulSøn1)=1,IF(AND(YEAR(JulSøn1+32)=Kalenderår,MONTH(JulSøn1+32)=7),JulSøn1+32,\"\"),IF(AND(YEAR(JulSøn1+39)=Kalenderår,MONTH(JulSøn1+39)=7),JulSøn1+39,\"\"))","v":""},{"$f":"IF(DAY(JulSøn1)=1,IF(AND(YEAR(JulSøn1+33)=Kalenderår,MONTH(JulSøn1+33)=7),JulSøn1+33,\"\"),IF(AND(YEAR(JulSøn1+40)=Kalenderår,MONTH(JulSøn1+40)=7),JulSøn1+40,\"\"))","v":""},{"$f":"IF(DAY(JulSøn1)=1,IF(AND(YEAR(JulSøn1+34)=Kalenderår,MONTH(JulSøn1+34)=7),JulSøn1+34,\"\"),IF(AND(YEAR(JulSøn1+41)=Kalenderår,MONTH(JulSøn1+41)=7),JulSøn1+41,\"\"))","v":""},{"$f":"IF(DAY(JulSøn1)=1,IF(AND(YEAR(JulSøn1+35)=Kalenderår,MONTH(JulSøn1+35)=7),JulSøn1+35,\"\"),IF(AND(YEAR(JulSøn1+42)=Kalenderår,MONTH(JulSøn1+42)=7),JulSøn1+42,\"\"))","v":""},null,{"$f":"IF(DAY(AugSøn1)=1,IF(AND(YEAR(AugSøn1+29)=Kalenderår,MONTH(AugSøn1+29)=8),AugSøn1+29,\"\"),IF(AND(YEAR(AugSøn1+36)=Kalenderår,MONTH(AugSøn1+36)=8),AugSøn1+36,\"\"))","v":""},{"$f":"IF(DAY(AugSøn1)=1,IF(AND(YEAR(AugSøn1+30)=Kalenderår,MONTH(AugSøn1+30)=8),AugSøn1+30,\"\"),IF(AND(YEAR(AugSøn1+37)=Kalenderår,MONTH(AugSøn1+37)=8),AugSøn1+37,\"\"))","v":""},{"$f":"IF(DAY(AugSøn1)=1,IF(AND(YEAR(AugSøn1+31)=Kalenderår,MONTH(AugSøn1+31)=8),AugSøn1+31,\"\"),IF(AND(YEAR(AugSøn1+38)=Kalenderår,MONTH(AugSøn1+38)=8),AugSøn1+38,\"\"))","v":""},{"$f":"IF(DAY(AugSøn1)=1,IF(AND(YEAR(AugSøn1+32)=Kalenderår,MONTH(AugSøn1+32)=8),AugSøn1+32,\"\"),IF(AND(YEAR(AugSøn1+39)=Kalenderår,MONTH(AugSøn1+39)=8),AugSøn1+39,\"\"))","v":""},{"$f":"IF(DAY(AugSøn1)=1,IF(AND(YEAR(AugSøn1+33)=Kalenderår,MONTH(AugSøn1+33)=8),AugSøn1+33,\"\"),IF(AND(YEAR(AugSøn1+40)=Kalenderår,MONTH(AugSøn1+40)=8),AugSøn1+40,\"\"))","v":""},{"$f":"IF(DAY(AugSøn1)=1,IF(AND(YEAR(AugSøn1+34)=Kalenderår,MONTH(AugSøn1+34)=8),AugSøn1+34,\"\"),IF(AND(YEAR(AugSøn1+41)=Kalenderår,MONTH(AugSøn1+41)=8),AugSøn1+41,\"\"))","v":""},{"$f":"IF(DAY(AugSøn1)=1,IF(AND(YEAR(AugSøn1+35)=Kalenderår,MONTH(AugSøn1+35)=8),AugSøn1+35,\"\"),IF(AND(YEAR(AugSøn1+42)=Kalenderår,MONTH(AugSøn1+42)=8),AugSøn1+42,\"\"))","v":""}]
[]
["Du finner etiketten for september i celle C39 og oktober i celle K39",null,"SEPTEMBER",{"$nulls":7},"OKTOBER"]
["Du finner tabellen for septemberkalenderen i celle C40 til I46 og oktoberkalenderen i celle K40 til Q46. Du finner neste instruksjon i celle A44",null,"MA.","TI.","ON.","TO.","FR.","LØ.","SØ.",null,"MA.","TI.","ON.","TO.","FR.","LØ.","SØ."]
[null,null,{"$f":"IF(DAY(SepSøn1)=1,\"\",IF(AND(YEAR(SepSøn1+1)=Kalenderår,MONTH(SepSøn1+1)=9),SepSøn1+1,\"\"))","v":""},{"$f":"IF(DAY(SepSøn1)=1,\"\",IF(AND(YEAR(SepSøn1+2)=Kalenderår,MONTH(SepSøn1+2)=9),SepSøn1+2,\"\"))","v":""},{"$f":"IF(DAY(SepSøn1)=1,\"\",IF(AND(YEAR(SepSøn1+3)=Kalenderår,MONTH(SepSøn1+3)=9),SepSøn1+3,\"\"))","v":""},{"$f":"IF(DAY(SepSøn1)=1,\"\",IF(AND(YEAR(SepSøn1+4)=Kalenderår,MONTH(SepSøn1+4)=9),SepSøn1+4,\"\"))","v":"2022-09-01"},{"$f":"IF(DAY(SepSøn1)=1,\"\",IF(AND(YEAR(SepSøn1+5)=Kalenderår,MONTH(SepSøn1+5)=9),SepSøn1+5,\"\"))","v":"2022-09-02"},{"$f":"IF(DAY(SepSøn1)=1,\"\",IF(AND(YEAR(SepSøn1+6)=Kalenderår,MONTH(SepSøn1+6)=9),SepSøn1+6,\"\"))","v":"2022-09-03"},{"$f":"IF(DAY(SepSøn1)=1,IF(AND(YEAR(SepSøn1)=Kalenderår,MONTH(SepSøn1)=9),SepSøn1,\"\"),IF(AND(YEAR(SepSøn1+7)=Kalenderår,MONTH(SepSøn1+7)=9),SepSøn1+7,\"\"))","v":"2022-09-04"},null,{"$f":"IF(DAY(OktSøn1)=1,\"\",IF(AND(YEAR(OktSøn1+1)=Kalenderår,MONTH(OktSøn1+1)=10),OktSøn1+1,\"\"))","v":""},{"$f":"IF(DAY(OktSøn1)=1,\"\",IF(AND(YEAR(OktSøn1+2)=Kalenderår,MONTH(OktSøn1+2)=10),OktSøn1+2,\"\"))","v":""},{"$f":"IF(DAY(OktSøn1)=1,\"\",IF(AND(YEAR(OktSøn1+3)=Kalenderår,MONTH(OktSøn1+3)=10),OktSøn1+3,\"\"))","v":""},{"$f":"IF(DAY(OktSøn1)=1,\"\",IF(AND(YEAR(OktSøn1+4)=Kalenderår,MONTH(OktSøn1+4)=10),OktSøn1+4,\"\"))","v":""},{"$f":"IF(DAY(OktSøn1)=1,\"\",IF(AND(YEAR(OktSøn1+5)=Kalenderår,MONTH(OktSøn1+5)=10),OktSøn1+5,\"\"))","v":""},{"$f":"IF(DAY(OktSøn1)=1,\"\",IF(AND(YEAR(OktSøn1+6)=Kalenderår,MONTH(OktSøn1+6)=10),OktSøn1+6,\"\"))","v":"2022-10-01"},{"$f":"IF(DAY(OktSøn1)=1,IF(AND(YEAR(OktSøn1)=Kalenderår,MONTH(OktSøn1)=10),OktSøn1,\"\"),IF(AND(YEAR(OktSøn1+7)=Kalenderår,MONTH(OktSøn1+7)=10),OktSøn1+7,\"\"))","v":"2022-10-02"}]
[null,null,{"$f":"IF(DAY(SepSøn1)=1,IF(AND(YEAR(SepSøn1+1)=Kalenderår,MONTH(SepSøn1+1)=9),SepSøn1+1,\"\"),IF(AND(YEAR(SepSøn1+8)=Kalenderår,MONTH(SepSøn1+8)=9),SepSøn1+8,\"\"))","v":"2022-09-05"},{"$f":"IF(DAY(SepSøn1)=1,IF(AND(YEAR(SepSøn1+2)=Kalenderår,MONTH(SepSøn1+2)=9),SepSøn1+2,\"\"),IF(AND(YEAR(SepSøn1+9)=Kalenderår,MONTH(SepSøn1+9)=9),SepSøn1+9,\"\"))","v":"2022-09-06"},{"$f":"IF(DAY(SepSøn1)=1,IF(AND(YEAR(SepSøn1+3)=Kalenderår,MONTH(SepSøn1+3)=9),SepSøn1+3,\"\"),IF(AND(YEAR(SepSøn1+10)=Kalenderår,MONTH(SepSøn1+10)=9),SepSøn1+10,\"\"))","v":"2022-09-07"},{"$f":"IF(DAY(SepSøn1)=1,IF(AND(YEAR(SepSøn1+4)=Kalenderår,MONTH(SepSøn1+4)=9),SepSøn1+4,\"\"),IF(AND(YEAR(SepSøn1+11)=Kalenderår,MONTH(SepSøn1+11)=9),SepSøn1+11,\"\"))","v":"2022-09-08"},{"$f":"IF(DAY(SepSøn1)=1,IF(AND(YEAR(SepSøn1+5)=Kalenderår,MONTH(SepSøn1+5)=9),SepSøn1+5,\"\"),IF(AND(YEAR(SepSøn1+12)=Kalenderår,MONTH(SepSøn1+12)=9),SepSøn1+12,\"\"))","v":"2022-09-09"},{"$f":"IF(DAY(SepSøn1)=1,IF(AND(YEAR(SepSøn1+6)=Kalenderår,MONTH(SepSøn1+6)=9),SepSøn1+6,\"\"),IF(AND(YEAR(SepSøn1+13)=Kalenderår,MONTH(SepSøn1+13)=9),SepSøn1+13,\"\"))","v":"2022-09-10"},{"$f":"IF(DAY(SepSøn1)=1,IF(AND(YEAR(SepSøn1+7)=Kalenderår,MONTH(SepSøn1+7)=9),SepSøn1+7,\"\"),IF(AND(YEAR(SepSøn1+14)=Kalenderår,MONTH(SepSøn1+14)=9),SepSøn1+14,\"\"))","v":"2022-09-11"},null,{"$f":"IF(DAY(OktSøn1)=1,IF(AND(YEAR(OktSøn1+1)=Kalenderår,MONTH(OktSøn1+1)=10),OktSøn1+1,\"\"),IF(AND(YEAR(OktSøn1+8)=Kalenderår,MONTH(OktSøn1+8)=10),OktSøn1+8,\"\"))","v":"2022-10-03"},{"$f":"IF(DAY(OktSøn1)=1,IF(AND(YEAR(OktSøn1+2)=Kalenderår,MONTH(OktSøn1+2)=10),OktSøn1+2,\"\"),IF(AND(YEAR(OktSøn1+9)=Kalenderår,MONTH(OktSøn1+9)=10),OktSøn1+9,\"\"))","v":"2022-10-04"},{"$f":"IF(DAY(OktSøn1)=1,IF(AND(YEAR(OktSøn1+3)=Kalenderår,MONTH(OktSøn1+3)=10),OktSøn1+3,\"\"),IF(AND(YEAR(OktSøn1+10)=Kalenderår,MONTH(OktSøn1+10)=10),OktSøn1+10,\"\"))","v":"2022-10-05"},{"$f":"IF(DAY(OktSøn1)=1,IF(AND(YEAR(OktSøn1+4)=Kalenderår,MONTH(OktSøn1+4)=10),OktSøn1+4,\"\"),IF(AND(YEAR(OktSøn1+11)=Kalenderår,MONTH(OktSøn1+11)=10),OktSøn1+11,\"\"))","v":"2022-10-06"},{"$f":"IF(DAY(OktSøn1)=1,IF(AND(YEAR(OktSøn1+5)=Kalenderår,MONTH(OktSøn1+5)=10),OktSøn1+5,\"\"),IF(AND(YEAR(OktSøn1+12)=Kalenderår,MONTH(OktSøn1+12)=10),OktSøn1+12,\"\"))","v":"2022-10-07"},{"$f":"IF(DAY(OktSøn1)=1,IF(AND(YEAR(OktSøn1+6)=Kalenderår,MONTH(OktSøn1+6)=10),OktSøn1+6,\"\"),IF(AND(YEAR(OktSøn1+13)=Kalenderår,MONTH(OktSøn1+13)=10),OktSøn1+13,\"\"))","v":"2022-10-08"},{"$f":"IF(DAY(OktSøn1)=1,IF(AND(YEAR(OktSøn1+7)=Kalenderår,MONTH(OktSøn1+7)=10),OktSøn1+7,\"\"),IF(AND(YEAR(OktSøn1+14)=Kalenderår,MONTH(OktSøn1+14)=10),OktSøn1+14,\"\"))","v":"2022-10-09"}]
[null,null,{"$f":"IF(DAY(SepSøn1)=1,IF(AND(YEAR(SepSøn1+8)=Kalenderår,MONTH(SepSøn1+8)=9),SepSøn1+8,\"\"),IF(AND(YEAR(SepSøn1+15)=Kalenderår,MONTH(SepSøn1+15)=9),SepSøn1+15,\"\"))","v":"2022-09-12"},{"$f":"IF(DAY(SepSøn1)=1,IF(AND(YEAR(SepSøn1+9)=Kalenderår,MONTH(SepSøn1+9)=9),SepSøn1+9,\"\"),IF(AND(YEAR(SepSøn1+16)=Kalenderår,MONTH(SepSøn1+16)=9),SepSøn1+16,\"\"))","v":"2022-09-13"},{"$f":"IF(DAY(SepSøn1)=1,IF(AND(YEAR(SepSøn1+10)=Kalenderår,MONTH(SepSøn1+10)=9),SepSøn1+10,\"\"),IF(AND(YEAR(SepSøn1+17)=Kalenderår,MONTH(SepSøn1+17)=9),SepSøn1+17,\"\"))","v":"2022-09-14"},{"$f":"IF(DAY(SepSøn1)=1,IF(AND(YEAR(SepSøn1+11)=Kalenderår,MONTH(SepSøn1+11)=9),SepSøn1+11,\"\"),IF(AND(YEAR(SepSøn1+18)=Kalenderår,MONTH(SepSøn1+18)=9),SepSøn1+18,\"\"))","v":"2022-09-15"},{"$f":"IF(DAY(SepSøn1)=1,IF(AND(YEAR(SepSøn1+12)=Kalenderår,MONTH(SepSøn1+12)=9),SepSøn1+12,\"\"),IF(AND(YEAR(SepSøn1+19)=Kalenderår,MONTH(SepSøn1+19)=9),SepSøn1+19,\"\"))","v":"2022-09-16"},{"$f":"IF(DAY(SepSøn1)=1,IF(AND(YEAR(SepSøn1+13)=Kalenderår,MONTH(SepSøn1+13)=9),SepSøn1+13,\"\"),IF(AND(YEAR(SepSøn1+20)=Kalenderår,MONTH(SepSøn1+20)=9),SepSøn1+20,\"\"))","v":"2022-09-17"},{"$f":"IF(DAY(SepSøn1)=1,IF(AND(YEAR(SepSøn1+14)=Kalenderår,MONTH(SepSøn1+14)=9),SepSøn1+14,\"\"),IF(AND(YEAR(SepSøn1+21)=Kalenderår,MONTH(SepSøn1+21)=9),SepSøn1+21,\"\"))","v":"2022-09-18"},null,{"$f":"IF(DAY(OktSøn1)=1,IF(AND(YEAR(OktSøn1+8)=Kalenderår,MONTH(OktSøn1+8)=10),OktSøn1+8,\"\"),IF(AND(YEAR(OktSøn1+15)=Kalenderår,MONTH(OktSøn1+15)=10),OktSøn1+15,\"\"))","v":"2022-10-10"},{"$f":"IF(DAY(OktSøn1)=1,IF(AND(YEAR(OktSøn1+9)=Kalenderår,MONTH(OktSøn1+9)=10),OktSøn1+9,\"\"),IF(AND(YEAR(OktSøn1+16)=Kalenderår,MONTH(OktSøn1+16)=10),OktSøn1+16,\"\"))","v":"2022-10-11"},{"$f":"IF(DAY(OktSøn1)=1,IF(AND(YEAR(OktSøn1+10)=Kalenderår,MONTH(OktSøn1+10)=10),OktSøn1+10,\"\"),IF(AND(YEAR(OktSøn1+17)=Kalenderår,MONTH(OktSøn1+17)=10),OktSøn1+17,\"\"))","v":"2022-10-12"},{"$f":"IF(DAY(OktSøn1)=1,IF(AND(YEAR(OktSøn1+11)=Kalenderår,MONTH(OktSøn1+11)=10),OktSøn1+11,\"\"),IF(AND(YEAR(OktSøn1+18)=Kalenderår,MONTH(OktSøn1+18)=10),OktSøn1+18,\"\"))","v":"2022-10-13"},{"$f":"IF(DAY(OktSøn1)=1,IF(AND(YEAR(OktSøn1+12)=Kalenderår,MONTH(OktSøn1+12)=10),OktSøn1+12,\"\"),IF(AND(YEAR(OktSøn1+19)=Kalenderår,MONTH(OktSøn1+19)=10),OktSøn1+19,\"\"))","v":"2022-10-14"},{"$f":"IF(DAY(OktSøn1)=1,IF(AND(YEAR(OktSøn1+13)=Kalenderår,MONTH(OktSøn1+13)=10),OktSøn1+13,\"\"),IF(AND(YEAR(OktSøn1+20)=Kalenderår,MONTH(OktSøn1+20)=10),OktSøn1+20,\"\"))","v":"2022-10-15"},{"$f":"IF(DAY(OktSøn1)=1,IF(AND(YEAR(OktSøn1+14)=Kalenderår,MONTH(OktSøn1+14)=10),OktSøn1+14,\"\"),IF(AND(YEAR(OktSøn1+21)=Kalenderår,MONTH(OktSøn1+21)=10),OktSøn1+21,\"\"))","v":"2022-10-16"}]
["Skriv inn gateadresse i celle U44",null,{"$f":"IF(DAY(SepSøn1)=1,IF(AND(YEAR(SepSøn1+15)=Kalenderår,MONTH(SepSøn1+15)=9),SepSøn1+15,\"\"),IF(AND(YEAR(SepSøn1+22)=Kalenderår,MONTH(SepSøn1+22)=9),SepSøn1+22,\"\"))","v":"2022-09-19"},{"$f":"IF(DAY(SepSøn1)=1,IF(AND(YEAR(SepSøn1+16)=Kalenderår,MONTH(SepSøn1+16)=9),SepSøn1+16,\"\"),IF(AND(YEAR(SepSøn1+23)=Kalenderår,MONTH(SepSøn1+23)=9),SepSøn1+23,\"\"))","v":"2022-09-20"},{"$f":"IF(DAY(SepSøn1)=1,IF(AND(YEAR(SepSøn1+17)=Kalenderår,MONTH(SepSøn1+17)=9),SepSøn1+17,\"\"),IF(AND(YEAR(SepSøn1+24)=Kalenderår,MONTH(SepSøn1+24)=9),SepSøn1+24,\"\"))","v":"2022-09-21"},{"$f":"IF(DAY(SepSøn1)=1,IF(AND(YEAR(SepSøn1+18)=Kalenderår,MONTH(SepSøn1+18)=9),SepSøn1+18,\"\"),IF(AND(YEAR(SepSøn1+25)=Kalenderår,MONTH(SepSøn1+25)=9),SepSøn1+25,\"\"))","v":"2022-09-22"},{"$f":"IF(DAY(SepSøn1)=1,IF(AND(YEAR(SepSøn1+19)=Kalenderår,MONTH(SepSøn1+19)=9),SepSøn1+19,\"\"),IF(AND(YEAR(SepSøn1+26)=Kalenderår,MONTH(SepSøn1+26)=9),SepSøn1+26,\"\"))","v":"2022-09-23"},{"$f":"IF(DAY(SepSøn1)=1,IF(AND(YEAR(SepSøn1+20)=Kalenderår,MONTH(SepSøn1+20)=9),SepSøn1+20,\"\"),IF(AND(YEAR(SepSøn1+27)=Kalenderår,MONTH(SepSøn1+27)=9),SepSøn1+27,\"\"))","v":"2022-09-24"},{"$f":"IF(DAY(SepSøn1)=1,IF(AND(YEAR(SepSøn1+21)=Kalenderår,MONTH(SepSøn1+21)=9),SepSøn1+21,\"\"),IF(AND(YEAR(SepSøn1+28)=Kalenderår,MONTH(SepSøn1+28)=9),SepSøn1+28,\"\"))","v":"2022-09-25"},null,{"$f":"IF(DAY(OktSøn1)=1,IF(AND(YEAR(OktSøn1+15)=Kalenderår,MONTH(OktSøn1+15)=10),OktSøn1+15,\"\"),IF(AND(YEAR(OktSøn1+22)=Kalenderår,MONTH(OktSøn1+22)=10),OktSøn1+22,\"\"))","v":"2022-10-17"},{"$f":"IF(DAY(OktSøn1)=1,IF(AND(YEAR(OktSøn1+16)=Kalenderår,MONTH(OktSøn1+16)=10),OktSøn1+16,\"\"),IF(AND(YEAR(OktSøn1+23)=Kalenderår,MONTH(OktSøn1+23)=10),OktSøn1+23,\"\"))","v":"2022-10-18"},{"$f":"IF(DAY(OktSøn1)=1,IF(AND(YEAR(OktSøn1+17)=Kalenderår,MONTH(OktSøn1+17)=10),OktSøn1+17,\"\"),IF(AND(YEAR(OktSøn1+24)=Kalenderår,MONTH(OktSøn1+24)=10),OktSøn1+24,\"\"))","v":"2022-10-19"},{"$f":"IF(DAY(OktSøn1)=1,IF(AND(YEAR(OktSøn1+18)=Kalenderår,MONTH(OktSøn1+18)=10),OktSøn1+18,\"\"),IF(AND(YEAR(OktSøn1+25)=Kalenderår,MONTH(OktSøn1+25)=10),OktSøn1+25,\"\"))","v":"2022-10-20"},{"$f":"IF(DAY(OktSøn1)=1,IF(AND(YEAR(OktSøn1+19)=Kalenderår,MONTH(OktSøn1+19)=10),OktSøn1+19,\"\"),IF(AND(YEAR(OktSøn1+26)=Kalenderår,MONTH(OktSøn1+26)=10),OktSøn1+26,\"\"))","v":"2022-10-21"},{"$f":"IF(DAY(OktSøn1)=1,IF(AND(YEAR(OktSøn1+20)=Kalenderår,MONTH(OktSøn1+20)=10),OktSøn1+20,\"\"),IF(AND(YEAR(OktSøn1+27)=Kalenderår,MONTH(OktSøn1+27)=10),OktSøn1+27,\"\"))","v":"2022-10-22"},{"$f":"IF(DAY(OktSøn1)=1,IF(AND(YEAR(OktSøn1+21)=Kalenderår,MONTH(OktSøn1+21)=10),OktSøn1+21,\"\"),IF(AND(YEAR(OktSøn1+28)=Kalenderår,MONTH(OktSøn1+28)=10),OktSøn1+28,\"\"))","v":"2022-10-23"},{"$nulls":3},"Gateadresse"]
["Skriv inn by, poststed og postnummer i celle U45. Du finner neste instruksjon i celle A47",null,{"$f":"IF(DAY(SepSøn1)=1,IF(AND(YEAR(SepSøn1+22)=Kalenderår,MONTH(SepSøn1+22)=9),SepSøn1+22,\"\"),IF(AND(YEAR(SepSøn1+29)=Kalenderår,MONTH(SepSøn1+29)=9),SepSøn1+29,\"\"))","v":"2022-09-26"},{"$f":"IF(DAY(SepSøn1)=1,IF(AND(YEAR(SepSøn1+23)=Kalenderår,MONTH(SepSøn1+23)=9),SepSøn1+23,\"\"),IF(AND(YEAR(SepSøn1+30)=Kalenderår,MONTH(SepSøn1+30)=9),SepSøn1+30,\"\"))","v":"2022-09-27"},{"$f":"IF(DAY(SepSøn1)=1,IF(AND(YEAR(SepSøn1+24)=Kalenderår,MONTH(SepSøn1+24)=9),SepSøn1+24,\"\"),IF(AND(YEAR(SepSøn1+31)=Kalenderår,MONTH(SepSøn1+31)=9),SepSøn1+31,\"\"))","v":"2022-09-28"},{"$f":"IF(DAY(SepSøn1)=1,IF(AND(YEAR(SepSøn1+25)=Kalenderår,MONTH(SepSøn1+25)=9),SepSøn1+25,\"\"),IF(AND(YEAR(SepSøn1+32)=Kalenderår,MONTH(SepSøn1+32)=9),SepSøn1+32,\"\"))","v":"2022-09-29"},{"$f":"IF(DAY(SepSøn1)=1,IF(AND(YEAR(SepSøn1+26)=Kalenderår,MONTH(SepSøn1+26)=9),SepSøn1+26,\"\"),IF(AND(YEAR(SepSøn1+33)=Kalenderår,MONTH(SepSøn1+33)=9),SepSøn1+33,\"\"))","v":"2022-09-30"},{"$f":"IF(DAY(SepSøn1)=1,IF(AND(YEAR(SepSøn1+27)=Kalenderår,MONTH(SepSøn1+27)=9),SepSøn1+27,\"\"),IF(AND(YEAR(SepSøn1+34)=Kalenderår,MONTH(SepSøn1+34)=9),SepSøn1+34,\"\"))","v":""},{"$f":"IF(DAY(SepSøn1)=1,IF(AND(YEAR(SepSøn1+28)=Kalenderår,MONTH(SepSøn1+28)=9),SepSøn1+28,\"\"),IF(AND(YEAR(SepSøn1+35)=Kalenderår,MONTH(SepSøn1+35)=9),SepSøn1+35,\"\"))","v":""},null,{"$f":"IF(DAY(OktSøn1)=1,IF(AND(YEAR(OktSøn1+22)=Kalenderår,MONTH(OktSøn1+22)=10),OktSøn1+22,\"\"),IF(AND(YEAR(OktSøn1+29)=Kalenderår,MONTH(OktSøn1+29)=10),OktSøn1+29,\"\"))","v":"2022-10-24"},{"$f":"IF(DAY(OktSøn1)=1,IF(AND(YEAR(OktSøn1+23)=Kalenderår,MONTH(OktSøn1+23)=10),OktSøn1+23,\"\"),IF(AND(YEAR(OktSøn1+30)=Kalenderår,MONTH(OktSøn1+30)=10),OktSøn1+30,\"\"))","v":"2022-10-25"},{"$f":"IF(DAY(OktSøn1)=1,IF(AND(YEAR(OktSøn1+24)=Kalenderår,MONTH(OktSøn1+24)=10),OktSøn1+24,\"\"),IF(AND(YEAR(OktSøn1+31)=Kalenderår,MONTH(OktSøn1+31)=10),OktSøn1+31,\"\"))","v":"2022-10-26"},{"$f":"IF(DAY(OktSøn1)=1,IF(AND(YEAR(OktSøn1+25)=Kalenderår,MONTH(OktSøn1+25)=10),OktSøn1+25,\"\"),IF(AND(YEAR(OktSøn1+32)=Kalenderår,MONTH(OktSøn1+32)=10),OktSøn1+32,\"\"))","v":"2022-10-27"},{"$f":"IF(DAY(OktSøn1)=1,IF(AND(YEAR(OktSøn1+26)=Kalenderår,MONTH(OktSøn1+26)=10),OktSøn1+26,\"\"),IF(AND(YEAR(OktSøn1+33)=Kalenderår,MONTH(OktSøn1+33)=10),OktSøn1+33,\"\"))","v":"2022-10-28"},{"$f":"IF(DAY(OktSøn1)=1,IF(AND(YEAR(OktSøn1+27)=Kalenderår,MONTH(OktSøn1+27)=10),OktSøn1+27,\"\"),IF(AND(YEAR(OktSøn1+34)=Kalenderår,MONTH(OktSøn1+34)=10),OktSøn1+34,\"\"))","v":"2022-10-29"},{"$f":"IF(DAY(OktSøn1)=1,IF(AND(YEAR(OktSøn1+28)=Kalenderår,MONTH(OktSøn1+28)=10),OktSøn1+28,\"\"),IF(AND(YEAR(OktSøn1+35)=Kalenderår,MONTH(OktSøn1+35)=10),OktSøn1+35,\"\"))","v":"2022-10-30"},{"$nulls":3},"Postnummer, poststed"]
[null,null,{"$f":"IF(DAY(SepSøn1)=1,IF(AND(YEAR(SepSøn1+29)=Kalenderår,MONTH(SepSøn1+29)=9),SepSøn1+29,\"\"),IF(AND(YEAR(SepSøn1+36)=Kalenderår,MONTH(SepSøn1+36)=9),SepSøn1+36,\"\"))","v":""},{"$f":"IF(DAY(SepSøn1)=1,IF(AND(YEAR(SepSøn1+30)=Kalenderår,MONTH(SepSøn1+30)=9),SepSøn1+30,\"\"),IF(AND(YEAR(SepSøn1+37)=Kalenderår,MONTH(SepSøn1+37)=9),SepSøn1+37,\"\"))","v":""},{"$f":"IF(DAY(SepSøn1)=1,IF(AND(YEAR(SepSøn1+31)=Kalenderår,MONTH(SepSøn1+31)=9),SepSøn1+31,\"\"),IF(AND(YEAR(SepSøn1+38)=Kalenderår,MONTH(SepSøn1+38)=9),SepSøn1+38,\"\"))","v":""},{"$f":"IF(DAY(SepSøn1)=1,IF(AND(YEAR(SepSøn1+32)=Kalenderår,MONTH(SepSøn1+32)=9),SepSøn1+32,\"\"),IF(AND(YEAR(SepSøn1+39)=Kalenderår,MONTH(SepSøn1+39)=9),SepSøn1+39,\"\"))","v":""},{"$f":"IF(DAY(SepSøn1)=1,IF(AND(YEAR(SepSøn1+33)=Kalenderår,MONTH(SepSøn1+33)=9),SepSøn1+33,\"\"),IF(AND(YEAR(SepSøn1+40)=Kalenderår,MONTH(SepSøn1+40)=9),SepSøn1+40,\"\"))","v":""},{"$f":"IF(DAY(SepSøn1)=1,IF(AND(YEAR(SepSøn1+34)=Kalenderår,MONTH(SepSøn1+34)=9),SepSøn1+34,\"\"),IF(AND(YEAR(SepSøn1+41)=Kalenderår,MONTH(SepSøn1+41)=9),SepSøn1+41,\"\"))","v":""},{"$f":"IF(DAY(SepSøn1)=1,IF(AND(YEAR(SepSøn1+35)=Kalenderår,MONTH(SepSøn1+35)=9),SepSøn1+35,\"\"),IF(AND(YEAR(SepSøn1+42)=Kalenderår,MONTH(SepSøn1+42)=9),SepSøn1+42,\"\"))","v":""},null,{"$f":"IF(DAY(OktSøn1)=1,IF(AND(YEAR(OktSøn1+29)=Kalenderår,MONTH(OktSøn1+29)=10),OktSøn1+29,\"\"),IF(AND(YEAR(OktSøn1+36)=Kalenderår,MONTH(OktSøn1+36)=10),OktSøn1+36,\"\"))","v":"2022-10-31"},{"$f":"IF(DAY(OktSøn1)=1,IF(AND(YEAR(OktSøn1+30)=Kalenderår,MONTH(OktSøn1+30)=10),OktSøn1+30,\"\"),IF(AND(YEAR(OktSøn1+37)=Kalenderår,MONTH(OktSøn1+37)=10),OktSøn1+37,\"\"))","v":""},{"$f":"IF(DAY(OktSøn1)=1,IF(AND(YEAR(OktSøn1+31)=Kalenderår,MONTH(OktSøn1+31)=10),OktSøn1+31,\"\"),IF(AND(YEAR(OktSøn1+38)=Kalenderår,MONTH(OktSøn1+38)=10),OktSøn1+38,\"\"))","v":""},{"$f":"IF(DAY(OktSøn1)=1,IF(AND(YEAR(OktSøn1+32)=Kalenderår,MONTH(OktSøn1+32)=10),OktSøn1+32,\"\"),IF(AND(YEAR(OktSøn1+39)=Kalenderår,MONTH(OktSøn1+39)=10),OktSøn1+39,\"\"))","v":""},{"$f":"IF(DAY(OktSøn1)=1,IF(AND(YEAR(OktSøn1+33)=Kalenderår,MONTH(OktSøn1+33)=10),OktSøn1+33,\"\"),IF(AND(YEAR(OktSøn1+40)=Kalenderår,MONTH(OktSøn1+40)=10),OktSøn1+40,\"\"))","v":""},{"$f":"IF(DAY(OktSøn1)=1,IF(AND(YEAR(OktSøn1+34)=Kalenderår,MONTH(OktSøn1+34)=10),OktSøn1+34,\"\"),IF(AND(YEAR(OktSøn1+41)=Kalenderår,MONTH(OktSøn1+41)=10),OktSøn1+41,\"\"))","v":""},{"$f":"IF(DAY(OktSøn1)=1,IF(AND(YEAR(OktSøn1+35)=Kalenderår,MONTH(OktSøn1+35)=10),OktSøn1+35,\"\"),IF(AND(YEAR(OktSøn1+42)=Kalenderår,MONTH(OktSøn1+42)=10),OktSøn1+42,\"\"))","v":""}]
["Skriv inn firmaets telefonnummer i celle U47",{"$nulls":19},"Telefon"]
["Du finner etiketten for november i celle C48 og desember i celle K48. Skriv inn e-postadressen i celle U48",null,"NOVEMBER",{"$nulls":7},"DESEMBER",{"$nulls":9},"E-post"]
["Du finner tabellen for novemberkalenderen i celle C49 til I55 og desemberkalenderen i celle K49 til Q55. Du finner neste instruksjon i celle A51",null,"MA.","TI.","ON.","TO.","FR.","LØ.","SØ.",null,"MA.","TI.","ON.","TO.","FR.","LØ.","SØ.",{"$nulls":3},"Nettsted"]
[null,null,{"$f":"IF(DAY(NovSøn1)=1,\"\",IF(AND(YEAR(NovSøn1+1)=Kalenderår,MONTH(NovSøn1+1)=11),NovSøn1+1,\"\"))","v":""},{"$f":"IF(DAY(NovSøn1)=1,\"\",IF(AND(YEAR(NovSøn1+2)=Kalenderår,MONTH(NovSøn1+2)=11),NovSøn1+2,\"\"))","v":"2022-11-01"},{"$f":"IF(DAY(NovSøn1)=1,\"\",IF(AND(YEAR(NovSøn1+3)=Kalenderår,MONTH(NovSøn1+3)=11),NovSøn1+3,\"\"))","v":"2022-11-02"},{"$f":"IF(DAY(NovSøn1)=1,\"\",IF(AND(YEAR(NovSøn1+4)=Kalenderår,MONTH(NovSøn1+4)=11),NovSøn1+4,\"\"))","v":"2022-11-03"},{"$f":"IF(DAY(NovSøn1)=1,\"\",IF(AND(YEAR(NovSøn1+5)=Kalenderår,MONTH(NovSøn1+5)=11),NovSøn1+5,\"\"))","v":"2022-11-04"},{"$f":"IF(DAY(NovSøn1)=1,\"\",IF(AND(YEAR(NovSøn1+6)=Kalenderår,MONTH(NovSøn1+6)=11),NovSøn1+6,\"\"))","v":"2022-11-05"},{"$f":"IF(DAY(NovSøn1)=1,IF(AND(YEAR(NovSøn1)=Kalenderår,MONTH(NovSøn1)=11),NovSøn1,\"\"),IF(AND(YEAR(NovSøn1+7)=Kalenderår,MONTH(NovSøn1+7)=11),NovSøn1+7,\"\"))","v":"2022-11-06"},null,{"$f":"IF(DAY(DesSøn1)=1,\"\",IF(AND(YEAR(DesSøn1+1)=Kalenderår,MONTH(DesSøn1+1)=12),DesSøn1+1,\"\"))","v":""},{"$f":"IF(DAY(DesSøn1)=1,\"\",IF(AND(YEAR(DesSøn1+2)=Kalenderår,MONTH(DesSøn1+2)=12),DesSøn1+2,\"\"))","v":""},{"$f":"IF(DAY(DesSøn1)=1,\"\",IF(AND(YEAR(DesSøn1+3)=Kalenderår,MONTH(DesSøn1+3)=12),DesSøn1+3,\"\"))","v":""},{"$f":"IF(DAY(DesSøn1)=1,\"\",IF(AND(YEAR(DesSøn1+4)=Kalenderår,MONTH(DesSøn1+4)=12),DesSøn1+4,\"\"))","v":"2022-12-01"},{"$f":"IF(DAY(DesSøn1)=1,\"\",IF(AND(YEAR(DesSøn1+5)=Kalenderår,MONTH(DesSøn1+5)=12),DesSøn1+5,\"\"))","v":"2022-12-02"},{"$f":"IF(DAY(DesSøn1)=1,\"\",IF(AND(YEAR(DesSøn1+6)=Kalenderår,MONTH(DesSøn1+6)=12),DesSøn1+6,\"\"))","v":"2022-12-03"},{"$f":"IF(DAY(DesSøn1)=1,IF(AND(YEAR(DesSøn1)=Kalenderår,MONTH(DesSøn1)=12),DesSøn1,\"\"),IF(AND(YEAR(DesSøn1+7)=Kalenderår,MONTH(DesSøn1+7)=12),DesSøn1+7,\"\"))","v":"2022-12-04"}]
["Legg til firmalogoen i celle U51",null,{"$f":"IF(DAY(NovSøn1)=1,IF(AND(YEAR(NovSøn1+1)=Kalenderår,MONTH(NovSøn1+1)=11),NovSøn1+1,\"\"),IF(AND(YEAR(NovSøn1+8)=Kalenderår,MONTH(NovSøn1+8)=11),NovSøn1+8,\"\"))","v":"2022-11-07"},{"$f":"IF(DAY(NovSøn1)=1,IF(AND(YEAR(NovSøn1+2)=Kalenderår,MONTH(NovSøn1+2)=11),NovSøn1+2,\"\"),IF(AND(YEAR(NovSøn1+9)=Kalenderår,MONTH(NovSøn1+9)=11),NovSøn1+9,\"\"))","v":"2022-11-08"},{"$f":"IF(DAY(NovSøn1)=1,IF(AND(YEAR(NovSøn1+3)=Kalenderår,MONTH(NovSøn1+3)=11),NovSøn1+3,\"\"),IF(AND(YEAR(NovSøn1+10)=Kalenderår,MONTH(NovSøn1+10)=11),NovSøn1+10,\"\"))","v":"2022-11-09"},{"$f":"IF(DAY(NovSøn1)=1,IF(AND(YEAR(NovSøn1+4)=Kalenderår,MONTH(NovSøn1+4)=11),NovSøn1+4,\"\"),IF(AND(YEAR(NovSøn1+11)=Kalenderår,MONTH(NovSøn1+11)=11),NovSøn1+11,\"\"))","v":"2022-11-10"},{"$f":"IF(DAY(NovSøn1)=1,IF(AND(YEAR(NovSøn1+5)=Kalenderår,MONTH(NovSøn1+5)=11),NovSøn1+5,\"\"),IF(AND(YEAR(NovSøn1+12)=Kalenderår,MONTH(NovSøn1+12)=11),NovSøn1+12,\"\"))","v":"2022-11-11"},{"$f":"IF(DAY(NovSøn1)=1,IF(AND(YEAR(NovSøn1+6)=Kalenderår,MONTH(NovSøn1+6)=11),NovSøn1+6,\"\"),IF(AND(YEAR(NovSøn1+13)=Kalenderår,MONTH(NovSøn1+13)=11),NovSøn1+13,\"\"))","v":"2022-11-12"},{"$f":"IF(DAY(NovSøn1)=1,IF(AND(YEAR(NovSøn1+7)=Kalenderår,MONTH(NovSøn1+7)=11),NovSøn1+7,\"\"),IF(AND(YEAR(NovSøn1+14)=Kalenderår,MONTH(NovSøn1+14)=11),NovSøn1+14,\"\"))","v":"2022-11-13"},null,{"$f":"IF(DAY(DesSøn1)=1,IF(AND(YEAR(DesSøn1+1)=Kalenderår,MONTH(DesSøn1+1)=12),DesSøn1+1,\"\"),IF(AND(YEAR(DesSøn1+8)=Kalenderår,MONTH(DesSøn1+8)=12),DesSøn1+8,\"\"))","v":"2022-12-05"},{"$f":"IF(DAY(DesSøn1)=1,IF(AND(YEAR(DesSøn1+2)=Kalenderår,MONTH(DesSøn1+2)=12),DesSøn1+2,\"\"),IF(AND(YEAR(DesSøn1+9)=Kalenderår,MONTH(DesSøn1+9)=12),DesSøn1+9,\"\"))","v":"2022-12-06"},{"$f":"IF(DAY(DesSøn1)=1,IF(AND(YEAR(DesSøn1+3)=Kalenderår,MONTH(DesSøn1+3)=12),DesSøn1+3,\"\"),IF(AND(YEAR(DesSøn1+10)=Kalenderår,MONTH(DesSøn1+10)=12),DesSøn1+10,\"\"))","v":"2022-12-07"},{"$f":"IF(DAY(DesSøn1)=1,IF(AND(YEAR(DesSøn1+4)=Kalenderår,MONTH(DesSøn1+4)=12),DesSøn1+4,\"\"),IF(AND(YEAR(DesSøn1+11)=Kalenderår,MONTH(DesSøn1+11)=12),DesSøn1+11,\"\"))","v":"2022-12-08"},{"$f":"IF(DAY(DesSøn1)=1,IF(AND(YEAR(DesSøn1+5)=Kalenderår,MONTH(DesSøn1+5)=12),DesSøn1+5,\"\"),IF(AND(YEAR(DesSøn1+12)=Kalenderår,MONTH(DesSøn1+12)=12),DesSøn1+12,\"\"))","v":"2022-12-09"},{"$f":"IF(DAY(DesSøn1)=1,IF(AND(YEAR(DesSøn1+6)=Kalenderår,MONTH(DesSøn1+6)=12),DesSøn1+6,\"\"),IF(AND(YEAR(DesSøn1+13)=Kalenderår,MONTH(DesSøn1+13)=12),DesSøn1+13,\"\"))","v":"2022-12-10"},{"$f":"IF(DAY(DesSøn1)=1,IF(AND(YEAR(DesSøn1+7)=Kalenderår,MONTH(DesSøn1+7)=12),DesSøn1+7,\"\"),IF(AND(YEAR(DesSøn1+14)=Kalenderår,MONTH(DesSøn1+14)=12),DesSøn1+14,\"\"))","v":"2022-12-11"},{"$nulls":3},"Du finner plassholder for logo i denne cellen."]
[null,null,{"$f":"IF(DAY(NovSøn1)=1,IF(AND(YEAR(NovSøn1+8)=Kalenderår,MONTH(NovSøn1+8)=11),NovSøn1+8,\"\"),IF(AND(YEAR(NovSøn1+15)=Kalenderår,MONTH(NovSøn1+15)=11),NovSøn1+15,\"\"))","v":"2022-11-14"},{"$f":"IF(DAY(NovSøn1)=1,IF(AND(YEAR(NovSøn1+9)=Kalenderår,MONTH(NovSøn1+9)=11),NovSøn1+9,\"\"),IF(AND(YEAR(NovSøn1+16)=Kalenderår,MONTH(NovSøn1+16)=11),NovSøn1+16,\"\"))","v":"2022-11-15"},{"$f":"IF(DAY(NovSøn1)=1,IF(AND(YEAR(NovSøn1+10)=Kalenderår,MONTH(NovSøn1+10)=11),NovSøn1+10,\"\"),IF(AND(YEAR(NovSøn1+17)=Kalenderår,MONTH(NovSøn1+17)=11),NovSøn1+17,\"\"))","v":"2022-11-16"},{"$f":"IF(DAY(NovSøn1)=1,IF(AND(YEAR(NovSøn1+11)=Kalenderår,MONTH(NovSøn1+11)=11),NovSøn1+11,\"\"),IF(AND(YEAR(NovSøn1+18)=Kalenderår,MONTH(NovSøn1+18)=11),NovSøn1+18,\"\"))","v":"2022-11-17"},{"$f":"IF(DAY(NovSøn1)=1,IF(AND(YEAR(NovSøn1+12)=Kalenderår,MONTH(NovSøn1+12)=11),NovSøn1+12,\"\"),IF(AND(YEAR(NovSøn1+19)=Kalenderår,MONTH(NovSøn1+19)=11),NovSøn1+19,\"\"))","v":"2022-11-18"},{"$f":"IF(DAY(NovSøn1)=1,IF(AND(YEAR(NovSøn1+13)=Kalenderår,MONTH(NovSøn1+13)=11),NovSøn1+13,\"\"),IF(AND(YEAR(NovSøn1+20)=Kalenderår,MONTH(NovSøn1+20)=11),NovSøn1+20,\"\"))","v":"2022-11-19"},{"$f":"IF(DAY(NovSøn1)=1,IF(AND(YEAR(NovSøn1+14)=Kalenderår,MONTH(NovSøn1+14)=11),NovSøn1+14,\"\"),IF(AND(YEAR(NovSøn1+21)=Kalenderår,MONTH(NovSøn1+21)=11),NovSøn1+21,\"\"))","v":"2022-11-20"},null,{"$f":"IF(DAY(DesSøn1)=1,IF(AND(YEAR(DesSøn1+8)=Kalenderår,MONTH(DesSøn1+8)=12),DesSøn1+8,\"\"),IF(AND(YEAR(DesSøn1+15)=Kalenderår,MONTH(DesSøn1+15)=12),DesSøn1+15,\"\"))","v":"2022-12-12"},{"$f":"IF(DAY(DesSøn1)=1,IF(AND(YEAR(DesSøn1+9)=Kalenderår,MONTH(DesSøn1+9)=12),DesSøn1+9,\"\"),IF(AND(YEAR(DesSøn1+16)=Kalenderår,MONTH(DesSøn1+16)=12),DesSøn1+16,\"\"))","v":"2022-12-13"},{"$f":"IF(DAY(DesSøn1)=1,IF(AND(YEAR(DesSøn1+10)=Kalenderår,MONTH(DesSøn1+10)=12),DesSøn1+10,\"\"),IF(AND(YEAR(DesSøn1+17)=Kalenderår,MONTH(DesSøn1+17)=12),DesSøn1+17,\"\"))","v":"2022-12-14"},{"$f":"IF(DAY(DesSøn1)=1,IF(AND(YEAR(DesSøn1+11)=Kalenderår,MONTH(DesSøn1+11)=12),DesSøn1+11,\"\"),IF(AND(YEAR(DesSøn1+18)=Kalenderår,MONTH(DesSøn1+18)=12),DesSøn1+18,\"\"))","v":"2022-12-15"},{"$f":"IF(DAY(DesSøn1)=1,IF(AND(YEAR(DesSøn1+12)=Kalenderår,MONTH(DesSøn1+12)=12),DesSøn1+12,\"\"),IF(AND(YEAR(DesSøn1+19)=Kalenderår,MONTH(DesSøn1+19)=12),DesSøn1+19,\"\"))","v":"2022-12-16"},{"$f":"IF(DAY(DesSøn1)=1,IF(AND(YEAR(DesSøn1+13)=Kalenderår,MONTH(DesSøn1+13)=12),DesSøn1+13,\"\"),IF(AND(YEAR(DesSøn1+20)=Kalenderår,MONTH(DesSøn1+20)=12),DesSøn1+20,\"\"))","v":"2022-12-17"},{"$f":"IF(DAY(DesSøn1)=1,IF(AND(YEAR(DesSøn1+14)=Kalenderår,MONTH(DesSøn1+14)=12),DesSøn1+14,\"\"),IF(AND(YEAR(DesSøn1+21)=Kalenderår,MONTH(DesSøn1+21)=12),DesSøn1+21,\"\"))","v":"2022-12-18"}]
[null,null,{"$f":"IF(DAY(NovSøn1)=1,IF(AND(YEAR(NovSøn1+15)=Kalenderår,MONTH(NovSøn1+15)=11),NovSøn1+15,\"\"),IF(AND(YEAR(NovSøn1+22)=Kalenderår,MONTH(NovSøn1+22)=11),NovSøn1+22,\"\"))","v":"2022-11-21"},{"$f":"IF(DAY(NovSøn1)=1,IF(AND(YEAR(NovSøn1+16)=Kalenderår,MONTH(NovSøn1+16)=11),NovSøn1+16,\"\"),IF(AND(YEAR(NovSøn1+23)=Kalenderår,MONTH(NovSøn1+23)=11),NovSøn1+23,\"\"))","v":"2022-11-22"},{"$f":"IF(DAY(NovSøn1)=1,IF(AND(YEAR(NovSøn1+17)=Kalenderår,MONTH(NovSøn1+17)=11),NovSøn1+17,\"\"),IF(AND(YEAR(NovSøn1+24)=Kalenderår,MONTH(NovSøn1+24)=11),NovSøn1+24,\"\"))","v":"2022-11-23"},{"$f":"IF(DAY(NovSøn1)=1,IF(AND(YEAR(NovSøn1+18)=Kalenderår,MONTH(NovSøn1+18)=11),NovSøn1+18,\"\"),IF(AND(YEAR(NovSøn1+25)=Kalenderår,MONTH(NovSøn1+25)=11),NovSøn1+25,\"\"))","v":"2022-11-24"},{"$f":"IF(DAY(NovSøn1)=1,IF(AND(YEAR(NovSøn1+19)=Kalenderår,MONTH(NovSøn1+19)=11),NovSøn1+19,\"\"),IF(AND(YEAR(NovSøn1+26)=Kalenderår,MONTH(NovSøn1+26)=11),NovSøn1+26,\"\"))","v":"2022-11-25"},{"$f":"IF(DAY(NovSøn1)=1,IF(AND(YEAR(NovSøn1+20)=Kalenderår,MONTH(NovSøn1+20)=11),NovSøn1+20,\"\"),IF(AND(YEAR(NovSøn1+27)=Kalenderår,MONTH(NovSøn1+27)=11),NovSøn1+27,\"\"))","v":"2022-11-26"},{"$f":"IF(DAY(NovSøn1)=1,IF(AND(YEAR(NovSøn1+21)=Kalenderår,MONTH(NovSøn1+21)=11),NovSøn1+21,\"\"),IF(AND(YEAR(NovSøn1+28)=Kalenderår,MONTH(NovSøn1+28)=11),NovSøn1+28,\"\"))","v":"2022-11-27"},null,{"$f":"IF(DAY(DesSøn1)=1,IF(AND(YEAR(DesSøn1+15)=Kalenderår,MONTH(DesSøn1+15)=12),DesSøn1+15,\"\"),IF(AND(YEAR(DesSøn1+22)=Kalenderår,MONTH(DesSøn1+22)=12),DesSøn1+22,\"\"))","v":"2022-12-19"},{"$f":"IF(DAY(DesSøn1)=1,IF(AND(YEAR(DesSøn1+16)=Kalenderår,MONTH(DesSøn1+16)=12),DesSøn1+16,\"\"),IF(AND(YEAR(DesSøn1+23)=Kalenderår,MONTH(DesSøn1+23)=12),DesSøn1+23,\"\"))","v":"2022-12-20"},{"$f":"IF(DAY(DesSøn1)=1,IF(AND(YEAR(DesSøn1+17)=Kalenderår,MONTH(DesSøn1+17)=12),DesSøn1+17,\"\"),IF(AND(YEAR(DesSøn1+24)=Kalenderår,MONTH(DesSøn1+24)=12),DesSøn1+24,\"\"))","v":"2022-12-21"},{"$f":"IF(DAY(DesSøn1)=1,IF(AND(YEAR(DesSøn1+18)=Kalenderår,MONTH(DesSøn1+18)=12),DesSøn1+18,\"\"),IF(AND(YEAR(DesSøn1+25)=Kalenderår,MONTH(DesSøn1+25)=12),DesSøn1+25,\"\"))","v":"2022-12-22"},{"$f":"IF(DAY(DesSøn1)=1,IF(AND(YEAR(DesSøn1+19)=Kalenderår,MONTH(DesSøn1+19)=12),DesSøn1+19,\"\"),IF(AND(YEAR(DesSøn1+26)=Kalenderår,MONTH(DesSøn1+26)=12),DesSøn1+26,\"\"))","v":"2022-12-23"},{"$f":"IF(DAY(DesSøn1)=1,IF(AND(YEAR(DesSøn1+20)=Kalenderår,MONTH(DesSøn1+20)=12),DesSøn1+20,\"\"),IF(AND(YEAR(DesSøn1+27)=Kalenderår,MONTH(DesSøn1+27)=12),DesSøn1+27,\"\"))","v":"2022-12-24"},{"$f":"IF(DAY(DesSøn1)=1,IF(AND(YEAR(DesSøn1+21)=Kalenderår,MONTH(DesSøn1+21)=12),DesSøn1+21,\"\"),IF(AND(YEAR(DesSøn1+28)=Kalenderår,MONTH(DesSøn1+28)=12),DesSøn1+28,\"\"))","v":"2022-12-25"}]
[null,null,{"$f":"IF(DAY(NovSøn1)=1,IF(AND(YEAR(NovSøn1+22)=Kalenderår,MONTH(NovSøn1+22)=11),NovSøn1+22,\"\"),IF(AND(YEAR(NovSøn1+29)=Kalenderår,MONTH(NovSøn1+29)=11),NovSøn1+29,\"\"))","v":"2022-11-28"},{"$f":"IF(DAY(NovSøn1)=1,IF(AND(YEAR(NovSøn1+23)=Kalenderår,MONTH(NovSøn1+23)=11),NovSøn1+23,\"\"),IF(AND(YEAR(NovSøn1+30)=Kalenderår,MONTH(NovSøn1+30)=11),NovSøn1+30,\"\"))","v":"2022-11-29"},{"$f":"IF(DAY(NovSøn1)=1,IF(AND(YEAR(NovSøn1+24)=Kalenderår,MONTH(NovSøn1+24)=11),NovSøn1+24,\"\"),IF(AND(YEAR(NovSøn1+31)=Kalenderår,MONTH(NovSøn1+31)=11),NovSøn1+31,\"\"))","v":"2022-11-30"},{"$f":"IF(DAY(NovSøn1)=1,IF(AND(YEAR(NovSøn1+25)=Kalenderår,MONTH(NovSøn1+25)=11),NovSøn1+25,\"\"),IF(AND(YEAR(NovSøn1+32)=Kalenderår,MONTH(NovSøn1+32)=11),NovSøn1+32,\"\"))","v":""},{"$f":"IF(DAY(NovSøn1)=1,IF(AND(YEAR(NovSøn1+26)=Kalenderår,MONTH(NovSøn1+26)=11),NovSøn1+26,\"\"),IF(AND(YEAR(NovSøn1+33)=Kalenderår,MONTH(NovSøn1+33)=11),NovSøn1+33,\"\"))","v":""},{"$f":"IF(DAY(NovSøn1)=1,IF(AND(YEAR(NovSøn1+27)=Kalenderår,MONTH(NovSøn1+27)=11),NovSøn1+27,\"\"),IF(AND(YEAR(NovSøn1+34)=Kalenderår,MONTH(NovSøn1+34)=11),NovSøn1+34,\"\"))","v":""},{"$f":"IF(DAY(NovSøn1)=1,IF(AND(YEAR(NovSøn1+28)=Kalenderår,MONTH(NovSøn1+28)=11),NovSøn1+28,\"\"),IF(AND(YEAR(NovSøn1+35)=Kalenderår,MONTH(NovSøn1+35)=11),NovSøn1+35,\"\"))","v":""},null,{"$f":"IF(DAY(DesSøn1)=1,IF(AND(YEAR(DesSøn1+22)=Kalenderår,MONTH(DesSøn1+22)=12),DesSøn1+22,\"\"),IF(AND(YEAR(DesSøn1+29)=Kalenderår,MONTH(DesSøn1+29)=12),DesSøn1+29,\"\"))","v":"2022-12-26"},{"$f":"IF(DAY(DesSøn1)=1,IF(AND(YEAR(DesSøn1+23)=Kalenderår,MONTH(DesSøn1+23)=12),DesSøn1+23,\"\"),IF(AND(YEAR(DesSøn1+30)=Kalenderår,MONTH(DesSøn1+30)=12),DesSøn1+30,\"\"))","v":"2022-12-27"},{"$f":"IF(DAY(DesSøn1)=1,IF(AND(YEAR(DesSøn1+24)=Kalenderår,MONTH(DesSøn1+24)=12),DesSøn1+24,\"\"),IF(AND(YEAR(DesSøn1+31)=Kalenderår,MONTH(DesSøn1+31)=12),DesSøn1+31,\"\"))","v":"2022-12-28"},{"$f":"IF(DAY(DesSøn1)=1,IF(AND(YEAR(DesSøn1+25)=Kalenderår,MONTH(DesSøn1+25)=12),DesSøn1+25,\"\"),IF(AND(YEAR(DesSøn1+32)=Kalenderår,MONTH(DesSøn1+32)=12),DesSøn1+32,\"\"))","v":"2022-12-29"},{"$f":"IF(DAY(DesSøn1)=1,IF(AND(YEAR(DesSøn1+26)=Kalenderår,MONTH(DesSøn1+26)=12),DesSøn1+26,\"\"),IF(AND(YEAR(DesSøn1+33)=Kalenderår,MONTH(DesSøn1+33)=12),DesSøn1+33,\"\"))","v":"2022-12-30"},{"$f":"IF(DAY(DesSøn1)=1,IF(AND(YEAR(DesSøn1+27)=Kalenderår,MONTH(DesSøn1+27)=12),DesSøn1+27,\"\"),IF(AND(YEAR(DesSøn1+34)=Kalenderår,MONTH(DesSøn1+34)=12),DesSøn1+34,\"\"))","v":"2022-12-31"},{"$f":"IF(DAY(DesSøn1)=1,IF(AND(YEAR(DesSøn1+28)=Kalenderår,MONTH(DesSøn1+28)=12),DesSøn1+28,\"\"),IF(AND(YEAR(DesSøn1+35)=Kalenderår,MONTH(DesSøn1+35)=12),DesSøn1+35,\"\"))","v":""}]
[null,null,{"$f":"IF(DAY(NovSøn1)=1,IF(AND(YEAR(NovSøn1+29)=Kalenderår,MONTH(NovSøn1+29)=11),NovSøn1+29,\"\"),IF(AND(YEAR(NovSøn1+36)=Kalenderår,MONTH(NovSøn1+36)=11),NovSøn1+36,\"\"))","v":""},{"$f":"IF(DAY(NovSøn1)=1,IF(AND(YEAR(NovSøn1+30)=Kalenderår,MONTH(NovSøn1+30)=11),NovSøn1+30,\"\"),IF(AND(YEAR(NovSøn1+37)=Kalenderår,MONTH(NovSøn1+37)=11),NovSøn1+37,\"\"))","v":""},{"$f":"IF(DAY(NovSøn1)=1,IF(AND(YEAR(NovSøn1+31)=Kalenderår,MONTH(NovSøn1+31)=11),NovSøn1+31,\"\"),IF(AND(YEAR(NovSøn1+38)=Kalenderår,MONTH(NovSøn1+38)=11),NovSøn1+38,\"\"))","v":""},{"$f":"IF(DAY(NovSøn1)=1,IF(AND(YEAR(NovSøn1+32)=Kalenderår,MONTH(NovSøn1+32)=11),NovSøn1+32,\"\"),IF(AND(YEAR(NovSøn1+39)=Kalenderår,MONTH(NovSøn1+39)=11),NovSøn1+39,\"\"))","v":""},{"$f":"IF(DAY(NovSøn1)=1,IF(AND(YEAR(NovSøn1+33)=Kalenderår,MONTH(NovSøn1+33)=11),NovSøn1+33,\"\"),IF(AND(YEAR(NovSøn1+40)=Kalenderår,MONTH(NovSøn1+40)=11),NovSøn1+40,\"\"))","v":""},{"$f":"IF(DAY(NovSøn1)=1,IF(AND(YEAR(NovSøn1+34)=Kalenderår,MONTH(NovSøn1+34)=11),NovSøn1+34,\"\"),IF(AND(YEAR(NovSøn1+41)=Kalenderår,MONTH(NovSøn1+41)=11),NovSøn1+41,\"\"))","v":""},{"$f":"IF(DAY(NovSøn1)=1,IF(AND(YEAR(NovSøn1+35)=Kalenderår,MONTH(NovSøn1+35)=11),NovSøn1+35,\"\"),IF(AND(YEAR(NovSøn1+42)=Kalenderår,MONTH(NovSøn1+42)=11),NovSøn1+42,\"\"))","v":""},null,{"$f":"IF(DAY(DesSøn1)=1,IF(AND(YEAR(DesSøn1+29)=Kalenderår,MONTH(DesSøn1+29)=12),DesSøn1+29,\"\"),IF(AND(YEAR(DesSøn1+36)=Kalenderår,MONTH(DesSøn1+36)=12),DesSøn1+36,\"\"))","v":""},{"$f":"IF(DAY(DesSøn1)=1,IF(AND(YEAR(DesSøn1+30)=Kalenderår,MONTH(DesSøn1+30)=12),DesSøn1+30,\"\"),IF(AND(YEAR(DesSøn1+37)=Kalenderår,MONTH(DesSøn1+37)=12),DesSøn1+37,\"\"))","v":""},{"$f":"IF(DAY(DesSøn1)=1,IF(AND(YEAR(DesSøn1+31)=Kalenderår,MONTH(DesSøn1+31)=12),DesSøn1+31,\"\"),IF(AND(YEAR(DesSøn1+38)=Kalenderår,MONTH(DesSøn1+38)=12),DesSøn1+38,\"\"))","v":""},{"$f":"IF(DAY(DesSøn1)=1,IF(AND(YEAR(DesSøn1+32)=Kalenderår,MONTH(DesSøn1+32)=12),DesSøn1+32,\"\"),IF(AND(YEAR(DesSøn1+39)=Kalenderår,MONTH(DesSøn1+39)=12),DesSøn1+39,\"\"))","v":""},{"$f":"IF(DAY(DesSøn1)=1,IF(AND(YEAR(DesSøn1+33)=Kalenderår,MONTH(DesSøn1+33)=12),DesSøn1+33,\"\"),IF(AND(YEAR(DesSøn1+40)=Kalenderår,MONTH(DesSøn1+40)=12),DesSøn1+40,\"\"))","v":""},{"$f":"IF(DAY(DesSøn1)=1,IF(AND(YEAR(DesSøn1+34)=Kalenderår,MONTH(DesSøn1+34)=12),DesSøn1+34,\"\"),IF(AND(YEAR(DesSøn1+41)=Kalenderår,MONTH(DesSøn1+41)=12),DesSøn1+41,\"\"))","v":""},{"$f":"IF(DAY(DesSøn1)=1,IF(AND(YEAR(DesSøn1+35)=Kalenderår,MONTH(DesSøn1+35)=12),DesSøn1+35,\"\"),IF(AND(YEAR(DesSøn1+42)=Kalenderår,MONTH(DesSøn1+42)=12),DesSøn1+42,\"\"))","v":""}]